Workbook

Sheet Presentación
A2: 1. Información General
A4: Fecha: | F4: La herramienta Plan de Mejora y Eficiencia (PME) está basada en la filosofía de mejora continua: 1. Primero se identificaron 46 variables dentro de 5 ejes temáticos integrales, las cuales se evalúan en un cuestionario de autoevaluación (diagnóstico) para obtener una caracterización de la ASADA. 2. De las variables identificadas por mejorar, se priorizan y eligen las que formarán parte del Plan. 3. El PME se realiza dentro de un compromiso de fechas y responsables, al cual se le dará el seguimiento hasta obtener la mejora esperada. 4. Concluído el ciclo se reinicia para proceder a mejorar aquellas variables que aún estén pendientes, de manera que se busque la excelencia de la prestación del servicio de agua.
A5: Nombre de la ASADA:
A7: Información de la ASADA
A8: Región | C8: Distrito
A9: Cantón | C9: Teléfono
A10: Número de conexiones o servicios
A11: Número de comunidades
A13: Comité de evaluación y planificación
A14: Puesto | B14: Nombre

Sheet Diagnóstico
A2: 2. Cuestionario de Autoevaluación
O3: CALIFICACIÓN
B4: Preguntas | G4: Pts totales | H4: % | I4: Seleccione la respuesta a cada pregunta | M4: Resultado | N4: Respuesta | O4: Pts acumulados | P4: % | Q4: Nombre variable | R4: Diferencia pts | S4: Diferencia % | T4: Eje temático
A5: Gestión Comercial | B5: 1. ¿Qué tipo de sistema de facturación se utiliza para los usuarios? | G5: 2 | H5: 0.01 | I5: No hay | J5: Manual | K5: Sistema Electrónico | M5: 1 | N5: =+IF(M5=1,I5,IF(M5=2,J5,IF(M5=3,K5,""))) -> No hay | O5: =+IF(M5=1,0,IF(M5=2,1,IF(M5=3,2,0))) -> 0 | P5: =+IF(M5=1,0,IF(M5=2,0.005,IF(M5=3,0.01,0))) -> 0 | Q5: Sistema de Facturación | R5: =IF(N5="Sin respuesta",0,G5-O5) -> 2 | S5: =IF(N5="Sin respuesta",0,H5-P5) -> 0.01 | T5: G. Comercial
B6: 2. ¿Cada cuánto se hace la lectura de los hidrómetros a los usuarios? | G6: 2 | H6: 0.01 | I6: No hay | J6: Bimensual | K6: Mensual | M6: 2 | N6: =+IF(M6=1,I6,IF(M6=2,J6,IF(M6=3,K6,""))) -> Bimensual | O6: =+IF(M6=1,0,IF(M6=2,1,IF(M6=3,2,0))) -> 1 | P6: =+IF(M6=1,0,IF(M6=2,0.005,IF(M6=3,0.01,0))) -> 0.005 | Q6: Frecuencia de la lectura de hidrómetros | R6: 1 | S6: 0.005 | T6: G. Comercial
B7: 3. ¿Cuál es el porcentaje de cobertura de hidrómetros instalados? | G7: 3 | H7: 0.01 | I7: No hay | J7: Menor o igual a 50% | K7: Entre 50% y 75% | L7: Mayor a 75% | M7: 2 | N7: =+IF(M7=1,I7,IF(M7=2,J7,IF(M7=3,K7,IF(M7=4,L7,"")))) -> Menor o igual a 50% | O7: =+IF(M7=1,0,IF(M7=2,1,IF(M7=3,2,IF(M7=4,3,0)))) -> 1 | P7: =+IF(M7=1,0,IF(M7=2,0.0033,IF(M7=3,0.0066,IF(M7=4,0.01,0)))) -> 0.0033 | Q7: Micromedición instalada | R7: 2 | S7: 0.0067 | T7: G. Comercial
B8: 4. ¿Tienen disponibilidad de agua para la expansion de los servicios? | G8: 1 | H8: 0.01 | I8: No | J8: Sí | M8: 2 | N8: =+IF(M8=1,I8,IF(M8=2,J8,"")) -> Sí | O8: =+IF(M8=1,0,IF(M8=2,1,0)) -> 1 | P8: =+IF(M8=1,0,IF(M8=2,0.01,0)) -> 0.01 | Q8: Disponibilidad de agua para nuevos servicios | R8: 0 | S8: 0 | T8: G. Comercial
B9: 5. ¿Cuentan con un sistema de macromedición? | G9: 1 | H9: 0.01 | I9: No | J9: Sí | M9: 1 | N9: =+IF(M9=1,I9,IF(M9=2,J9,"")) -> No | O9: =+IF(M9=1,0,IF(M9=2,1,0)) -> 0 | P9: =+IF(M9=1,0,IF(M9=2,0.01,0)) -> 0 | Q9: Macromedición existente | R9: 1 | S9: 0.01 | T9: G. Comercial
B10: 6. ¿Se ofrece un sistema de recaudación externa? | G10: 1 | H10: 0.01 | I10: No | J10: Sí | M10: 0 | N10: =+IF(M10=1,I10,IF(M10=2,J10,"")) ->  | O10: =+IF(M10=1,0,IF(M10=2,1,0)) -> 0 | P10: =+IF(M10=1,0,IF(M10=2,0.01,0)) -> 0 | Q10: Sistema de Recaudación | R10: 1 | S10: 0.01 | T10: G. Comercial
B11: 7. ¿Cuál es porcentaje de morosidad mensual? | G11: 2 | H11: 0.01 | I11: Más de 10% | J11: Menos de 10% | K11: 0 | M11: 0 | N11: =+IF(M11=1,I11,IF(M11=2,J11,IF(M11=3,K11,""))) ->  | O11: =+IF(M11=1,0,IF(M11=2,1.5,IF(M11=3,2,0))) -> 0 | P11: =+IF(M11=1,0,IF(M11=2,0.005,IF(M11=3,0.01,0))) -> 0 | Q11: Morosidad mensual | R11: 2 | S11: 0.01 | T11: G. Comercial
B12: 8. ¿Aplica la tarifa vigente regulada por ARESEP? | G12: 1 | H12: 0.05 | I12: No | J12: Sí | M12: 0 | N12: =+IF(M12=1,I12,IF(M12=2,J12,"")) ->  | O12: =+IF(M12=1,0,IF(M12=2,1,0)) -> 0 | P12: =+IF(M12=1,0,IF(M12=2,0.05,0)) -> 0 | Q12: Aplicación de tarifa vigente de ARESEP | R12: 1 | S12: 0.05 | T12: G. Comercial
B13: 9. ¿Qué tipo de local se utiliza para la atención de los usuarios? | G13: 3 | H13: 0.02 | I13: No se cuenta con un lugar | J13: Vivienda Particular | K13: Instalación Comunal | L13: Oficina | M13: 0 | N13: =+IF(M13=1,I13,IF(M13=2,J13,IF(M13=3,K13,IF(M13=4,L13,"")))) ->  | O13: =+IF(M13=1,0,IF(M13=2,1,IF(M13=3,2,IF(M13=4,3,0)))) -> 0 | P13: =+IF(M13=1,0,IF(M13=2,0.01,IF(M13=3,0.015,IF(M13=4,0.02,0)))) -> 0 | Q13: Local para atención de Usuarios | R13: 3 | S13: 0.02 | T13: G. Comercial
B14: 10. ¿Cuenta con un sistema de seguimiento de quejas? | G14: 1 | H14: 0.01 | I14: No | J14: Sí | M14: 0 | N14: =+IF(M14=1,I14,IF(M14=2,J14,"")) ->  | O14: =+IF(M14=1,0,IF(M14=2,1,0)) -> 0 | P14: =+IF(M14=1,0,IF(M14=2,0.01,0)) -> 0 | Q14: Seguimiento de quejas | R14: 1 | S14: 0.01 | T14: G. Comercial
G15: =+SUM(G5:G14) -> 17 | H15: =+SUM(H5:H14) -> 0.15 | N15: Subtotal | O15: =+SUM(O5:O14) -> 3 | P15: =+SUM(P5:P14) -> 0.0183 | R15: =+SUM(R5:R14) -> 14 | S15: =+SUM(S5:S14) -> 0.1317
N16: x | Q16: Variable | R16: Puntos | S16: %
A17: Gestión Comunal | B17: 11. ¿Se organizan campañas para involucrar a las escuelas/colegios que busquen crear conciencia del uso adecuado del agua? | G17: 1 | H17: 0.03 | I17: No | J17: Sí | M17: 0 | N17: =+IF(M17=1,I17,IF(M17=2,J17,"")) ->  | O17: =+IF(M17=1,0,IF(M17=2,1,0)) -> 0 | P17: =+IF(M17=1,0,IF(M17=2,0.03,0)) -> 0 | Q17: Campañas con escuelas/colegios | R17: =IF(N17="Sin respuesta",0,G17-O17) -> 1 | S17: =IF(N17="Sin respuesta",0,H17-P17) -> 0.03 | T17: G. Comunal
B18: 12. ¿Se realiza rendición de cuentas y transparencia de la gestión de la ASADA hacia la comunidad? | G18: 2 | H18: 0.03 | I18: No | J18: Poco | K18: Sí, regularmente | M18: 0 | N18: =+IF(M18=1,I18,IF(M18=2,J18,IF(M18=3,K18,""))) ->  | O18: =+IF(M18=1,0,IF(M18=2,1,IF(M18=3,2,0))) -> 0 | P18: =+IF(M18=1,0,IF(M18=2,0.015,IF(M18=3,0.03,0))) -> 0 | Q18: Plan de Transparencia y Rendición de cuentas | R18: =IF(N18="Sin respuesta",0,G18-O18) -> 2 | S18: =IF(N18="Sin respuesta",0,H18-P18) -> 0.03 | T18: G. Comunal
B19: 13.¿Posee con una estrategia de afiliación de usuarios al servicio? | G19: 1 | H19: 0.03 | I19: No | J19: Sí | M19: 0 | N19: =+IF(M19=1,I19,IF(M19=2,J19,"")) ->  | O19: =+IF(M19=1,0,IF(M19=2,1,0)) -> 0 | P19: =+IF(M19=1,0,IF(M19=2,0.03,0)) -> 0 | Q19: Plan de Afiliación | R19: =IF(N19="Sin respuesta",0,G19-O19) -> 1 | S19: =IF(N19="Sin respuesta",0,H19-P19) -> 0.03 | T19: G. Comunal
B20: 14. ¿Cuál es el porcentaje de participación de socios en las Asambleas? | G20: 3 | H20: 0.03 | I20: No hay | J20: Menor a 50% | K20: Entre 50% y 75% | L20: Más de 75% | M20: 0 | N20: =+IF(M20=1,I20,IF(M20=2,J20,IF(M20=3,K20,IF(M20=4,L20,"")))) ->  | O20: =+IF(M20=1,0,IF(M20=2,1,IF(M20=3,2,IF(M20=4,3,0)))) -> 0 | P20: =+IF(M20=1,0,IF(M20=2,0.01,IF(M20=3,0.02,IF(M20=4,0.03,0)))) -> 0 | Q20: Socios en las Asambleas | R20: =IF(N20="Sin respuesta",0,G20-O20) -> 3 | S20: =IF(N20="Sin respuesta",0,H20-P20) -> 0.03 | T20: G. Comunal
B21: 15. ¿Qué porcentaje de usuarios son socios? | G21: 3 | H21: 0.03 | I21: No hay | J21: Menor a 50% | K21: Entre 50% y 75% | L21: Más de 75% | M21: 0 | N21: =+IF(M21=1,I21,IF(M21=2,J21,IF(M21=3,K21,IF(M21=4,L21,"")))) ->  | O21: =+IF(M21=1,0,IF(M21=2,1,IF(M21=3,2,IF(M21=4,3,0)))) -> 0 | P21: =+IF(M21=1,0,IF(M21=2,0.01,IF(M21=3,0.02,IF(M21=4,0.03,0)))) -> 0 | Q21: Porcentaje de usuarios que son socios | R21: =IF(N21="Sin respuesta",0,G21-O21) -> 3 | S21: =IF(N21="Sin respuesta",0,H21-P21) -> 0.03 | T21: G. Comunal
G22: =+SUM(G17:G21) -> 10 | H22: =+SUM(H17:H21) -> 0.15 | N22: Subtotal | O22: =+SUM(O17:O21) -> 0 | P22: =+SUM(P17:P21) -> 0 | R22: =+SUM(R17:R21) -> 10 | S22: =+SUM(S17:S21) -> 0.15
N23: x | Q23: Variable | R23: Puntos | S23: %
A24: Gestión Ambiental y de Recurso Hídrico | B24: 16. ¿Se cuenta con estudios técnicos para definir el balance hídrico? | G24: 1 | H24: 0.04 | I24: No | J24: Sí | M24: 0 | N24: =+IF(M24=1,I24,IF(M24=2,J24,"")) ->  | O24: =+IF(M24=1,0,IF(M24=2,1,0)) -> 0 | P24: =+IF(M24=1,0,IF(M24=2,0.04,0)) -> 0 | Q24: Balance Hídrico | R24: =IF(N24="Sin respuesta",0,G24-O24) -> 1 | S24: =IF(N24="Sin respuesta",0,H24-P24) -> 0.04 | T24: G. Ambiental y de Recurso Hídrico
B25: 17. ¿Se cuenta con programas de adaptación al cambio climático? | G25: 1 | H25: 0.02 | I25: No | J25: Sí | M25: 0 | N25: =+IF(M25=1,I25,IF(M25=2,J25,"")) ->  | O25: =+IF(M25=1,0,IF(M25=2,1,0)) -> 0 | P25: =+IF(M25=1,0,IF(M25=2,0.02,0)) -> 0 | Q25: Programas de Adaptación Cambio Climático | R25: =IF(N25="Sin respuesta",0,G25-O25) -> 1 | S25: =IF(N25="Sin respuesta",0,H25-P25) -> 0.02 | T25: G. Ambiental y de Recurso Hídrico
B26: 18. ¿Se cuenta con estudio técnico que define las áreas de protección? | G26: 1 | H26: 0.04 | I26: No | J26: Sí | M26: 0 | N26: =+IF(M26=1,I26,IF(M26=2,J26,"")) ->  | O26: =+IF(M26=1,0,IF(M26=2,1,0)) -> 0 | P26: =+IF(M26=1,0,IF(M26=2,0.04,0)) -> 0 | Q26: Áreas de protección definidas | R26: =IF(N26="Sin respuesta",0,G26-O26) -> 1 | S26: =IF(N26="Sin respuesta",0,H26-P26) -> 0.04 | T26: G. Ambiental y de Recurso Hídrico
B27: 19. ¿Se están desarrollando programas de educación ambiental en la comunidad? | G27: 1 | H27: 0.02 | I27: No | J27: Sí | M27: 0 | N27: =+IF(M27=1,I27,IF(M27=2,J27,"")) ->  | O27: =+IF(M27=1,0,IF(M27=2,1,0)) -> 0 | P27: =+IF(M27=1,0,IF(M27=2,0.02,0)) -> 0 | Q27: Programas de educación ambiental en la comunidad | R27: =IF(N27="Sin respuesta",0,G27-O27) -> 1 | S27: =IF(N27="Sin respuesta",0,H27-P27) -> 0.02 | T27: G. Ambiental y de Recurso Hídrico
B28: 20.¿Las fuentes están inscritas como caudales ante el MINAE? | G28: 1 | H28: 0.03 | I28: No | J28: Sí | M28: 0 | N28: =+IF(M28=1,I28,IF(M28=2,J28,"")) ->  | O28: =+IF(M28=1,0,IF(M28=2,1,0)) -> 0 | P28: =+IF(M28=1,0,IF(M28=2,0.03,0)) -> 0 | Q28: Inscripción de caudal en MINAE | R28: =IF(N28="Sin respuesta",0,G28-O28) -> 1 | S28: =IF(N28="Sin respuesta",0,H28-P28) -> 0.03 | T28: G. Ambiental y de Recurso Hídrico
G29: =+SUM(G24:G28) -> 5 | H29: =+SUM(H24:H28) -> 0.15 | N29: Subtotal | O29: =+SUM(O24:O28) -> 0 | P29: =+SUM(P24:P28) -> 0 | R29: =+SUM(R24:R28) -> 5 | S29: =+SUM(S24:S28) -> 0.15
N30: x | Q30: Variable | R30: Puntos | S30: %
A31: Gestión de Sistemas de Agua | B31: 21.¿Se hacen las mediciones de presión periódicas al sistema de abastecimiento? | G31: 1 | H31: 0.02 | I31: No | J31: Sí | M31: 0 | N31: =+IF(M31=1,I31,IF(M31=2,J31,"")) ->  | O31: =+IF(M31=1,0,IF(M31=2,1,IF(M31=3,,0))) -> 0 | P31: =+IF(M31=1,0,IF(M31=2,0.02,0)) -> 0 | Q31: Mediciones de presión | R31: =IF(N31="Sin respuesta",0,G31-O31) -> 1 | S31: =IF(N31="Sin respuesta",0,H31-P31) -> 0.02 | T31: G. Sistemas de Agua
B32: 22. ¿Cuentan con un plan de instalación de hidrantes avalado por el Cuerpo de Bomberos? | G32: 1 | H32: 0.01 | I32: No | J32: Sí | M32: 0 | N32: =+IF(M32=1,I32,IF(M32=2,J32,"")) ->  | O32: =+IF(M32=1,0,IF(M32=2,1,0)) -> 0 | P32: =+IF(M32=1,0,IF(M32=2,0.01,0)) -> 0 | Q32: Plan de instalación de hidrantes | R32: 1 | S32: 0.01 | T32: G. Sistemas de Agua
B33: 23. ¿Los hidrantes poseen una contabilidad separada a los servicios de agua? | G33: 1 | H33: 0.01 | I33: No hay | J33: Sí | M33: 0 | N33: =+IF(M33=1,I33,IF(M33=2,J33,"")) ->  | O33: =+IF(M33=1,0,IF(M33=2,1,0)) -> 0 | P33: =+IF(M33=1,0,IF(M33=2,0.01,0)) -> 0 | Q33: Contabilidad para hidrantes separada | R33: 1 | S33: 0.01 | T33: G. Sistemas de Agua
B34: 24. ¿Cuenta con Sistema de Desinfección? | G34: 2 | H34: 0.03 | I34: No | J34: Sí | K34: Sí, funcionando adecuadamente | M34: 0 | N34: =+IF(M34=1,I34,IF(M34=2,J34,IF(M34=3,K34,""))) ->  | O34: =+IF(M34=1,0,IF(M34=2,1,IF(M34=3,2,0))) -> 0 | P34: =+IF(M34=1,0,IF(M34=2,0.015,IF(M34=3,0.03,0))) -> 0 | Q34: Calidad del agua – Sistema de Desinfección | R34: 2 | S34: 0.03 | T34: G. Sistemas de Agua
B35: 25. ¿Se tiene un plan de Gestión del Riesgo (Vulnerabilidades y amenazas)? | G35: 1 | H35: 0.02 | I35: No | J35: Sí | M35: 0 | N35: =+IF(M35=1,I35,IF(M35=2,J35,"")) ->  | O35: =+IF(M35=1,0,IF(M35=2,1,IF(M35=3,,0))) -> 0 | P35: =+IF(M35=1,0,IF(M35=2,0.02,0)) -> 0 | Q35: Plan de Gestión de Riesgos | R35: 1 | S35: 0.02 | T35: G. Sistemas de Agua
B36: 26. ¿Cada cuánto realiza los análisis de calidad de agua? | G36: 3 | H36: 0.03 | I36: No hay | J36: Anual | K36: Semestral | L36: Trimestral | M36: 0 | N36: =+IF(M36=1,I36,IF(M36=2,J36,IF(M36=3,K36,IF(M36=4,L36,"")))) ->  | O36: =+IF(M36=1,0,IF(M36=2,1,IF(M36=3,3,IF(M36=4,3,0)))) -> 0 | P36: =+IF(M36=1,0,IF(M36=2,0.01,IF(M36=3,0.03,IF(M36=4,0.03,0)))) -> 0 | Q36: Calidad del agua – Periodicidad de los muestreos | R36: 3 | S36: 0.03 | T36: G. Sistemas de Agua
B37: 27. ¿El resultado del análisis cumple con el Reglamento de Agua Potable? | G37: 1 | H37: 0.12 | I37: No | J37: Sí | M37: 0 | N37: =+IF(M37=1,I37,IF(M37=2,J37,"")) ->  | O37: =+IF(M37=1,0,IF(M37=2,1,0)) -> 0 | P37: =+IF(M37=1,0,IF(M37=2,0.12,0)) -> 0 | Q37: Calidad del agua – Cumplimiento del RCA | R37: 1 | S37: 0.12 | T37: G. Sistemas de Agua
B38: 28. ¿Se realizan las medidas correctivas con base en los análisis reportados por el laboratorio asignado? | G38: 1 | H38: 0.02 | I38: No | J38: Sí | M38: 0 | N38: =+IF(M38=1,I38,IF(M38=2,J38,"")) ->  | O38: =+IF(M38=1,0,IF(M38=2,1,IF(M38=3,,0))) -> 0 | P38: =+IF(M38=1,0,IF(M38=2,0.02,0)) -> 0 | Q38: Calidad del agua – implementación de medidas correctivas | R38: 1 | S38: 0.02 | T38: G. Sistemas de Agua
B39: 29. ¿Con que frecuencia se presentan interrupciones (mayor a 6hrs) por roturas, fugas o desacoples en la tubería de distribución para el último año? | G39: 3 | H39: 0.02 | I39: Mensual | J39: 3 veces/ Año | K39: 2 veces/ Año | L39: Ninguna 100% continuo | M39: 0 | N39: =+IF(M39=1,I39,IF(M39=2,J39,IF(M39=3,K39,IF(M39=4,L39,"")))) ->  | O39: =+IF(M39=1,0,IF(M39=2,1,IF(M39=3,3,IF(M39=4,3,0)))) -> 0 | P39: =+IF(M39=1,0,IF(M39=2,0.0066,IF(M39=3,0.02,IF(M39=4,0.02,0)))) -> 0 | Q39: Frecuencia de interrupciones del servicio | R39: 3 | S39: 0.02 | T39: G. Sistemas de Agua
B40: 30. ¿Tiene manual de mantenimiento y operación del sistema de abastecimiento de agua? | G40: 1 | H40: 0.02 | I40: No | J40: Sí | M40: 0 | N40: =+IF(M40=1,I40,IF(M40=2,J40,"")) ->  | O40: =+IF(M40=1,0,IF(M40=2,1,0)) -> 0 | P40: =+IF(M40=1,0,IF(M40=2,0.02,0)) -> 0 | Q40: Manual de mantenimiento y operación del sistema | R40: 1 | S40: 0.02 | T40: G. Sistemas de Agua
G41: =+SUM(G31:G40) -> 15 | H41: =+SUM(H31:H40) -> 0.3 | N41: Subtotal | O41: =+SUM(O31:O40) -> 0 | P41: =+SUM(P31:P40) -> 0 | R41: =+SUM(R31:R40) -> 15 | S41: =+SUM(S31:S40) -> 0.3
N42: x | Q42: Variable | R42: Puntos | S42: %
A43: Gestión Administrativa y Financiera | B43: 31. ¿Dónde se custodian los ingresos? | G43: 2 | H43: 0.01 | I43: Custodia Física en ASADA | J43: Cuenta Bancaria particular | K43: Cuenta Bancaria ASADA | M43: 0 | N43: =+IF(M43=1,I43,IF(M43=2,J43,IF(M43=3,K43,""))) ->  | O43: =+IF(M43=1,0,IF(M43=2,1,IF(M43=3,2,0))) -> 0 | P43: =+IF(M43=1,0,IF(M43=2,0.005,IF(M43=3,0.01,0))) -> 0 | Q43: Custodia de ingresos | R43: =IF(N43="Sin respuesta",0,G43-O43) -> 2 | S43: =IF(N43="Sin respuesta",0,H43-P43) -> 0.01 | T43: G. Administrativa y Financiera
B44: 32. ¿Existe un plan de trabajo anual que sirva como guía al trabajo a realizar durante el año? | G44: 2 | H44: 0.02 | I44: No tienen | J44: Sin actualizar | K44: Al día | M44: 0 | N44: =+IF(M44=1,I44,IF(M44=2,J44,IF(M44=3,K44,""))) ->  | O44: =+IF(M44=1,0,IF(M44=2,1,IF(M44=3,2,0))) -> 0 | P44: =+IF(M44=1,0,IF(M44=2,0.01,IF(M44=3,0.02,0))) -> 0 | Q44: Plan de Trabajo Anual | R44: 2 | S44: 0.02 | T44: G. Administrativa y Financiera
B45: 33. ¿Cuentan con un libro de socios? | G45: 2 | H45: 0.01 | I45: No cuentan | J45: Sin actualizar | K45: Al día | M45: 0 | N45: =+IF(M45=1,I45,IF(M45=2,J45,IF(M45=3,K45,""))) ->  | O45: =+IF(M45=1,0,IF(M45=2,1,IF(M45=3,2,0))) -> 0 | P45: =+IF(M45=1,0,IF(M45=2,0.005,IF(M45=3,0.01,0))) -> 0 | Q45: Libro de Socios | R45: 2 | S45: 0.01 | T45: G. Administrativa y Financiera
B46: 34. ¿Cuentan con un libro de actas de Asambleas? | G46: 2 | H46: 0.01 | I46: No tienen | J46: Sin actualizar | K46: Al día | M46: 0 | N46: =+IF(M46=1,I46,IF(M46=2,J46,IF(M46=3,K46,""))) ->  | O46: =+IF(M46=1,0,IF(M46=2,1,IF(M46=3,2,0))) -> 0 | P46: =+IF(M46=1,0,IF(M46=2,0.005,IF(M46=3,0.01,0))) -> 0 | Q46: Libro de Actas Asamblea | R46: 2 | S46: 0.01 | T46: G. Administrativa y Financiera
B47: 35. ¿Cuentan con libro de actas de la Junta Directiva? | G47: 2 | H47: 0.01 | I47: No tienen | J47: Sin actualizar | K47: Al día | M47: 0 | N47: =+IF(M47=1,I47,IF(M47=2,J47,IF(M47=3,K47,""))) ->  | O47: =+IF(M47=1,0,IF(M47=2,1,IF(M47=3,2,0))) -> 0 | P47: =+IF(M47=1,0,IF(M47=2,0.005,IF(M47=3,0.01,0))) -> 0 | Q47: Libro de Actas Junta Directiva | R47: 2 | S47: 0.01 | T47: G. Administrativa y Financiera
B48: 36. ¿Cuenta con el convenio de delegación? | G48: 1 | H48: 0.1 | I48: No | J48: Sí | M48: 0 | N48: =+IF(M48=1,I48,IF(M48=2,J48,"")) ->  | O48: =+IF(M48=1,0,IF(M48=2,1,0)) -> 0 | P48: =+IF(M48=1,0,IF(M48=2,0.1,0)) -> 0 | Q48: Convenio de Delegación | R48: 1 | S48: 0.1 | T48: G. Administrativa y Financiera
B49: 37. ¿Se tiene un fontanero contratado por la ASADA? | G49: 1 | H49: 0.03 | I49: No | J49: Sí | M49: 0 | N49: =+IF(M49=1,I49,IF(M49=2,J49,"")) ->  | O49: =+IF(M49=1,0,IF(M49=2,1,0)) -> 0 | P49: =+IF(M49=1,0,IF(M49=2,0.03,0)) -> 0 | Q49: Fontanero | R49: 1 | S49: 0.03 | T49: G. Administrativa y Financiera
B50: 38. ¿Cuenta con servicios de contabilidad para llevar los libros contables al día? | G50: 1 | H50: 0.01 | I50: No | J50: Sí | M50: 0 | N50: =+IF(M50=1,I50,IF(M50=2,J50,"")) ->  | O50: =+IF(M50=1,0,IF(M50=2,1,0)) -> 0 | P50: =+IF(M50=1,0,IF(M50=2,0.01,0)) -> 0 | Q50: Servicios de Contabilidad | R50: 1 | S50: 0.01 | T50: G. Administrativa y Financiera
B51: 39. ¿Cuentan con Estados financieros actualizados al último trimestre? | G51: 2 | H51: 0.01 | I51: No tienen | J51: Desactualizado | K51: Actualizado | M51: 0 | N51: =+IF(M51=1,I51,IF(M51=2,J51,IF(M51=3,K51,""))) ->  | O51: =+IF(M51=1,0,IF(M51=2,1,IF(M51=3,2,0))) -> 0 | P51: =+IF(M51=1,0,IF(M51=2,0.005,IF(M51=3,0.01,0))) -> 0 | Q51: Estados financieros al último trimestre | R51: 2 | S51: 0.01 | T51: G. Administrativa y Financiera
B52: 40. En qué medios se respalda la información Financiera? | G52: 2 | H52: 0.01 | I52: No hay | J52: Medios físicos | K52: Medios electrónicos | M52: 0 | N52: =+IF(M52=1,I52,IF(M52=2,J52,IF(M52=3,K52,""))) ->  | O52: =+IF(M52=1,0,IF(M52=2,1,IF(M52=3,2,0))) -> 0 | P52: =+IF(M52=1,0,IF(M52=2,0.005,IF(M52=3,0.01,0))) -> 0 | Q52: Respaldos de información Financiera | R52: 2 | S52: 0.01 | T52: G. Administrativa y Financiera
B53: 41. Los Estados Financieros son enviados al AyA anualmente | G53: 1 | H53: 0.01 | I53: No | J53: Sí | M53: 0 | N53: =+IF(M53=1,I53,IF(M53=2,J53,"")) ->  | O53: =+IF(M53=1,0,IF(M53=2,1,IF(M53=3,,0))) -> 0 | P53: =+IF(M53=1,0,IF(M53=2,0.01,0)) -> 0 | Q53: Estados Financieros enviados a AyA | R53: 1 | S53: 0.01 | T53: G. Administrativa y Financiera
B54: 42. ¿Se cuenta con un lugar que funcione como bodega de materiales para la operación y mantenimiento? | G54: 3 | H54: 0.01 | I54: No hay | J54: Vivienda Particular | K54: Instalación Comunal | L54: Bodega | M54: 0 | N54: =+IF(M54=1,I54,IF(M54=2,J54,IF(M54=3,K54,IF(M54=4,L54,"")))) ->  | O54: =+IF(M54=1,0,IF(M54=2,1,IF(M54=3,2,IF(M54=4,3,0)))) -> 0 | P54: =+IF(M54=1,0,IF(M54=2,0.0033,IF(M54=3,0.0066,IF(M54=4,0.01,0)))) -> 0 | Q54: Bodega de materiales para operación y mantenimiento | R54: 3 | S54: 0.01 | T54: G. Administrativa y Financiera
B55: 43. ¿Cuentan con sistemas para gestión de ASADAS? | G55: 3 | H55: 0.01 | I55: No | J55: Herramientas Físicas | K55: Herramientas Digitales | L55: Software | M55: 0 | N55: =+IF(M55=1,I55,IF(M55=2,J55,IF(M55=3,K55,IF(M55=4,L55,"")))) ->  | O55: =+IF(M55=1,0,IF(M55=2,1,IF(M55=3,2,IF(M55=4,3,0)))) -> 0 | P55: =+IF(M55=1,0,IF(M55=2,0.0033,IF(M55=3,0.0066,IF(M55=4,0.01,0)))) -> 0 | Q55: Sistemas de gestión para la ASADAS | R55: 3 | S55: 0.01 | T55: G. Administrativa y Financiera
G56: =+SUM(G43:G55) -> 24 | H56: =+SUM(H43:H55) -> 0.25 | N56: Subtotal | O56: =+SUM(O43:O55) -> 0 | P56: =+SUM(P43:P55) -> 0 | R56: =+SUM(R43:R55) -> 24 | S56: =+SUM(S43:S55) -> 0.25
N57: x | Q57: Variable | R57: Puntos | S57: %
A58: Gestión Saneamiento | B58: La ASADA cuenta con Alcantarillado Sanitario Si su respuesta es "No": ha terminado el cuestionario, si es "Sí": continue el cuestionario | I58: No | J58: Sí | M58: 0 | N58: =+IF(M58=1,I58,IF(M58=2,J58,"")) -> 
B59: 44. ¿Cuál es la condición del Alcantarillado Sanitario? | G59: 2 | H59: 0.03 | I59: Sin tratamiento | J59: Previsto para tratamiento | K59: Con tratamiento | M59: 0 | N59: =+IF(M59=1,I59,IF(M59=2,J59,IF(M59=3,K59,""))) ->  | O59: =IF(N58="No","",IF(M59=1,0,IF(M59=2,1,IF(M59=3,2,0)))) -> 0 | P59: =IF(N58="No","",IF(M59=1,0,IF(M59=2,0.015,IF(M59=3,0.03,0)))) -> 0 | Q59: Condición del Alcantarillado Sanitario | R59: =IF(N58="No","",IF(N59="Sin respuesta",0,G59-O59)) -> 2 | S59: =IF(N58="No","",IF(N59="Sin respuesta",0,H59-P59)) -> 0.03 | T59: G. Saneamiento
B60: 45. ¿Se presentan reportes operacionales del Alcantarillado Sanitario? | G60: 1 | H60: 0.04 | I60: No | J60: Sí | M60: 0 | N60: =+IF(M60=1,I60,IF(M60=2,J60,"")) ->  | O60: =IF(N58="No","",IF(M60=1,0,IF(M60=2,1,IF(M60=3,,0)))) -> 0 | P60: =IF(N58="No","",IF(M60=1,0,IF(M60=2,0.04,0))) -> 0 | Q60: Presentación de reportes operacionales | R60: =IF(N58="No","",IF(N60="Sin respuesta",0,G60-O60)) -> 1 | S60: =IF(N58="No","",IF(N60="Sin respuesta",0,H60-P60)) -> 0.04 | T60: G. Saneamiento
B61: 46. ¿Cuál es el estado de las Plantas de Tratamiento de Aguas Residuales (PTAR)? | G61: 3 | H61: 0.03 | I61: Malo | J61: Regular | K61: Bueno | L61: Excelente | M61: 0 | N61: =+IF(M61=1,I61,IF(M61=2,J61,IF(M61=3,K61,IF(M61=4,L61,"")))) ->  | O61: =IF(N58="No","",IF(M61=1,0,IF(M61=2,1,IF(M61=3,2,IF(M61=4,3,0))))) -> 0 | P61: =IF(N58="No","",IF(M61=1,0,IF(M61=2,0.01,IF(M61=3,0.02,IF(M61=4,0.03,0))))) -> 0 | Q61: Estado de la PTAR | R61: =IF(N58="No","",IF(N61="Sin respuesta",0,G61-O61)) -> 3 | S61: =IF(N58="No","",IF(N61="Sin respuesta",0,H61-P61)) -> 0.03 | T61: G. Saneamiento
G62: =+SUM(G59:G61) -> 6 | H62: =+SUM(H59:H61) -> 0.1 | N62: Subtotal | O62: =+SUM(O59:O61) -> 0 | P62: =+SUM(P59:P61) -> 0 | R62: =+SUM(R59:R61) -> 6 | S62: =+SUM(S59:S61) -> 0.1
G63: =+G62+G56+G41+G29+G22+G15 -> 77 | H63: =+H62+H56+H41+H29+H22+H15 -> 1.1 | N63: TOTAL | O63: =+O62+O56+O41+O29+O22+O15 -> 3 | P63: =+P62+P56+P41+P29+P22+P15 -> 0.0183 | R63: =+R62+R56+R41+R29+R22+R15 -> 74 | S63: =+S62+S56+S41+S29+S22+S15 -> 1.0817
A65: 2.1 Resultado general
B67: Categoría | C67: Puntuación | D67: Porcentaje | J67: Categoría | K67: a | L67: b
B68: =+IF(D68<=0.39,"D",IF(D68<0.59,"C",IF(D68<0.8,"B","A"))) -> D | C68: =+O63 -> 3 | D68: =+P63 -> 0.0183 | J68: START | K68: 0 | L68: 0
B69: =+IF(D68<=0.39,"Débil",IF(D68<0.59,"En desarrollo bajo",IF(D68<0.8,"En desarrollo alto","Consolidada"))) -> Débil | J69: D | K69: 0.4 | L69: 0.4
J70: C | K70: 0.2 | L70: 0.6
B71: Tabla de Rangos | C71: Porcentaje | J71: B | K71: 0.2 | L71: 0.8
B72: A - Consolidada | C72: 80% a 100% | J72: A | K72: 0.2 | L72: 1
B73: B - En desarrollo alto | C73: Entre 60% y 79% | J73: BLANC | K73: 1 | L73: 0
B74: C - En desarrollo bajo | C74: Entre 40% y 59% | J74: Value | K74: =+D68 -> 0.0183
B75: D - Débil | C75: Menor a 40% | J75: Ancho | K75: 0.02
J76: End | K76: =+SUM(K68:K73)-SUM(K74:K75) -> 1.9617
A77: 2.2 Resultado por Eje temático
B80: Eje temático | C80: Puntos totales | D80: Porcentaje total | E80: Puntos obtenidos | F80: Porcentaje Obtenido | G80: Diferencia | H80: Diferencia %
B81: Gestión Comercial | C81: =+G15 -> 17 | D81: =+H15 -> 0.15 | E81: =+O15 -> 3 | F81: =+P15 -> 0.0183 | G81: =+C81-E81 -> 14 | H81: 0.1317
B82: Gestión Comunal | C82: =+G22 -> 10 | D82: =+H22 -> 0.15 | E82: =+O22 -> 0 | F82: =+P22 -> 0 | G82: 10 | H82: 0.15
B83: Gestión Ambiental y de Recurso Hídrico | C83: =+G29 -> 5 | D83: =+H29 -> 0.15 | E83: =+O29 -> 0 | F83: =+P29 -> 0 | G83: 5 | H83: 0.15
B84: Gestión de Sistemas de Agua | C84: =+G41 -> 15 | D84: =+H41 -> 0.3 | E84: =+O41 -> 0 | F84: =+P41 -> 0 | G84: 15 | H84: 0.3
B85: Gestión Administrativa y Financiera | C85: =+G56 -> 24 | D85: =+H56 -> 0.25 | E85: =+O56 -> 0 | F85: =+P56 -> 0 | G85: 24 | H85: 0.25
B86: Gestión Saneamiento | C86: =+G62 -> 6 | D86: =+H62 -> 0.1 | E86: =+O62 -> 0 | F86: =+P62 -> 0 | G86: 6 | H86: 0.1
B87: TOTAL | C87: =+SUM(C81:C86) -> 77 | D87: =+SUM(D81:D86) -> 1.1 | E87: 3 | F87: 0.0183 | G87: 74 | H87: 1.0817

Sheet Priorización
A2: 3. Priorización de variables
D4: Escala de priorización
A5: Eje temático | B5: Eje temático | C5: Variables | D5: Criticidad | E5: Posibilidad de solución | F5: Recursos disponibles | G5: Valor priorización De 1 a 3 pts | H5: Porcentaje faltante
C6: Variable | D6: Criticidad | E6: Facilidad de solución | F6: Recursos disponibles | G6: Valor promedio
A7: Gestión Comercial | B7: G.Comercial | C7: =+IF(Pivots!B4>0,Pivots!A4,"") -> Aplicación de tarifa vigente de ARESEP | G7: =IF(C7="","",IFERROR((VLOOKUP(D7,$A$60:$B$62,2,0)+VLOOKUP(E7,$A$64:$B$66,2,0)+VLOOKUP(F7,$A$68:$B$70,2,0))/3,"Calcular valor")) -> Calcular valor | H7: =+VLOOKUP(C7,Diagnóstico!$Q$5:$S$61,3,0) -> 0.05
B8: G.Comercial | C8: =+IF(Pivots!B5>0,Pivots!A5,"") -> Local para atención de Usuarios | G8: =IF(C8="","",IFERROR((VLOOKUP(D8,$A$60:$B$62,2,0)+VLOOKUP(E8,$A$64:$B$66,2,0)+VLOOKUP(F8,$A$68:$B$70,2,0))/3,"Calcular valor")) -> Calcular valor | H8: =+VLOOKUP(C8,Diagnóstico!$Q$5:$S$61,3,0) -> 0.02
B9: G.Comercial | C9: =+IF(Pivots!B6>0,Pivots!A6,"") -> Sistema de Facturación | G9: =IF(C9="","",IFERROR((VLOOKUP(D9,$A$60:$B$62,2,0)+VLOOKUP(E9,$A$64:$B$66,2,0)+VLOOKUP(F9,$A$68:$B$70,2,0))/3,"Calcular valor")) -> Calcular valor | H9: =+VLOOKUP(C9,Diagnóstico!$Q$5:$S$61,3,0) -> 0.01
B10: G.Comercial | C10: =+IF(Pivots!B7>0,Pivots!A7,"") -> Morosidad mensual | G10: =IF(C10="","",IFERROR((VLOOKUP(D10,$A$60:$B$62,2,0)+VLOOKUP(E10,$A$64:$B$66,2,0)+VLOOKUP(F10,$A$68:$B$70,2,0))/3,"Calcular valor")) -> Calcular valor | H10: =+VLOOKUP(C10,Diagnóstico!$Q$5:$S$61,3,0) -> 0.01
B11: G.Comercial | C11: =+IF(Pivots!B8>0,Pivots!A8,"") -> Macromedición existente | G11: Calcular valor | H11: =+VLOOKUP(C11,Diagnóstico!$Q$5:$S$61,3,0) -> 0.01
B12: G.Comercial | C12: =+IF(Pivots!B9>0,Pivots!A9,"") -> Sistema de Recaudación | G12: Calcular valor | H12: =+VLOOKUP(C12,Diagnóstico!$Q$5:$S$61,3,0) -> 0.01
B13: G.Comercial | C13: =+IF(Pivots!B10>0,Pivots!A10,"") -> Seguimiento de quejas | G13: Calcular valor | H13: =+VLOOKUP(C13,Diagnóstico!$Q$5:$S$61,3,0) -> 0.01
B14: G.Comercial | C14: =+IF(Pivots!B11>0,Pivots!A11,"") -> Micromedición instalada | G14: Calcular valor | H14: =+VLOOKUP(C14,Diagnóstico!$Q$5:$S$61,3,0) -> 0.0067
B15: G.Comercial | C15: =+IF(Pivots!B12>0,Pivots!A12,"") -> Frecuencia de la lectura de hidrómetros | G15: Calcular valor | H15: =+VLOOKUP(C15,Diagnóstico!$Q$5:$S$61,3,0) -> 0.005
B16: G.Comercial | C16: =+IF(Pivots!B13>0,Pivots!A13,"") ->  | H16: =+VLOOKUP(C16,Diagnóstico!$Q$5:$S$61,3,0) -> 
A18: Gestión Comunal | B18: G. Comunal | C18: =+IF(Pivots!B18>0,Pivots!A18,"") -> Socios en las Asambleas | G18: =IF(C18="","",IFERROR((VLOOKUP(D18,$A$60:$B$62,2,0)+VLOOKUP(E18,$A$64:$B$66,2,0)+VLOOKUP(F18,$A$68:$B$70,2,0))/3,"Calcular valor")) -> Calcular valor | H18: =+VLOOKUP(C18,Diagnóstico!$Q$5:$S$61,3,0) -> 0.03
B19: G. Comunal | C19: =+IF(Pivots!B19>0,Pivots!A19,"") -> Campañas con escuelas/colegios | G19: Calcular valor | H19: =+VLOOKUP(C19,Diagnóstico!$Q$5:$S$61,3,0) -> 0.03
B20: G. Comunal | C20: =+IF(Pivots!B20>0,Pivots!A20,"") -> Porcentaje de usuarios que son socios | G20: Calcular valor | H20: =+VLOOKUP(C20,Diagnóstico!$Q$5:$S$61,3,0) -> 0.03
B21: G. Comunal | C21: =+IF(Pivots!B21>0,Pivots!A21,"") -> Plan de Afiliación | G21: Calcular valor | H21: =+VLOOKUP(C21,Diagnóstico!$Q$5:$S$61,3,0) -> 0.03
B22: G. Comunal | C22: =+IF(Pivots!B22>0,Pivots!A22,"") -> Plan de Transparencia y Rendición de cuentas | G22: Calcular valor | H22: =+VLOOKUP(C22,Diagnóstico!$Q$5:$S$61,3,0) -> 0.03
A24: Gestión Ambiental y del Recurso Hídrico | B24: G. Ambiental y de Recurso Hídrico | C24: =+IF(Pivots!B27>0,Pivots!A27,"") -> Áreas de protección definidas | G24: =IF(C24="","",IFERROR((VLOOKUP(D24,$A$60:$B$62,2,0)+VLOOKUP(E24,$A$64:$B$66,2,0)+VLOOKUP(F24,$A$68:$B$70,2,0))/3,"Calcular valor")) -> Calcular valor | H24: =+VLOOKUP(C24,Diagnóstico!$Q$5:$S$61,3,0) -> 0.04
B25: G. Ambiental y de Recurso Hídrico | C25: =+IF(Pivots!B28>0,Pivots!A28,"") -> Balance Hídrico | G25: Calcular valor | H25: =+VLOOKUP(C25,Diagnóstico!$Q$5:$S$61,3,0) -> 0.04
B26: G. Ambiental y de Recurso Hídrico | C26: =+IF(Pivots!B29>0,Pivots!A29,"") -> Inscripción de caudal en MINAE | G26: Calcular valor | H26: =+VLOOKUP(C26,Diagnóstico!$Q$5:$S$61,3,0) -> 0.03
B27: G. Ambiental y de Recurso Hídrico | C27: =+IF(Pivots!B30>0,Pivots!A30,"") -> Programas de educación ambiental en la comunidad | G27: Calcular valor | H27: =+VLOOKUP(C27,Diagnóstico!$Q$5:$S$61,3,0) -> 0.02
B28: G. Ambiental y de Recurso Hídrico | C28: =+IF(Pivots!B31>0,Pivots!A31,"") -> Programas de Adaptación Cambio Climático | G28: Calcular valor | H28: =+VLOOKUP(C28,Diagnóstico!$Q$5:$S$61,3,0) -> 0.02
A30: Gestión Sistemas de Agua | B30: G. Sistemas de Agua | C30: =+IF(Pivots!B36>0,Pivots!A36,"") -> Calidad del agua – Cumplimiento del RCA | G30: =IF(C30="","",IFERROR((VLOOKUP(D30,$A$60:$B$62,2,0)+VLOOKUP(E30,$A$64:$B$66,2,0)+VLOOKUP(F30,$A$68:$B$70,2,0))/3,"Calcular valor")) -> Calcular valor | H30: =+VLOOKUP(C30,Diagnóstico!$Q$5:$S$61,3,0) -> 0.12
B31: G. Sistemas de Agua | C31: =+IF(Pivots!B37>0,Pivots!A37,"") -> Calidad del agua – Periodicidad de los muestreos | G31: Calcular valor | H31: =+VLOOKUP(C31,Diagnóstico!$Q$5:$S$61,3,0) -> 0.03
B32: G. Sistemas de Agua | C32: =+IF(Pivots!B38>0,Pivots!A38,"") -> Calidad del agua – Sistema de Desinfección | G32: Calcular valor | H32: =+VLOOKUP(C32,Diagnóstico!$Q$5:$S$61,3,0) -> 0.03
B33: G. Sistemas de Agua | C33: =+IF(Pivots!B39>0,Pivots!A39,"") -> Manual de mantenimiento y operación del sistema | G33: Calcular valor | H33: =+VLOOKUP(C33,Diagnóstico!$Q$5:$S$61,3,0) -> 0.02
B34: G. Sistemas de Agua | C34: =+IF(Pivots!B40>0,Pivots!A40,"") -> Frecuencia de interrupciones del servicio | G34: Calcular valor | H34: =+VLOOKUP(C34,Diagnóstico!$Q$5:$S$61,3,0) -> 0.02
B35: G. Sistemas de Agua | C35: =+IF(Pivots!B41>0,Pivots!A41,"") -> Mediciones de presión | G35: Calcular valor | H35: =+VLOOKUP(C35,Diagnóstico!$Q$5:$S$61,3,0) -> 0.02
B36: G. Sistemas de Agua | C36: =+IF(Pivots!B42>0,Pivots!A42,"") -> Plan de Gestión de Riesgos | G36: Calcular valor | H36: =+VLOOKUP(C36,Diagnóstico!$Q$5:$S$61,3,0) -> 0.02
B37: G. Sistemas de Agua | C37: =+IF(Pivots!B43>0,Pivots!A43,"") -> Calidad del agua – implementación de medidas correctivas | G37: Calcular valor | H37: =+VLOOKUP(C37,Diagnóstico!$Q$5:$S$61,3,0) -> 0.02
B38: G. Sistemas de Agua | C38: =+IF(Pivots!B44>0,Pivots!A44,"") -> Plan de instalación de hidrantes | G38: Calcular valor | H38: =+VLOOKUP(C38,Diagnóstico!$Q$5:$S$61,3,0) -> 0.01
B39: G. Sistemas de Agua | C39: =+IF(Pivots!B45>0,Pivots!A45,"") -> Contabilidad para hidrantes separada | G39: Calcular valor | H39: =+VLOOKUP(C39,Diagnóstico!$Q$5:$S$61,3,0) -> 0.01
A41: Gestión Administrativa Financiera | B41: G. Administrativa y Financiera | C41: =+IF(Pivots!B50>0,Pivots!A50,"") -> Convenio de Delegación | G41: =IF(C41="","",IFERROR((VLOOKUP(D41,$A$60:$B$62,2,0)+VLOOKUP(E41,$A$64:$B$66,2,0)+VLOOKUP(F41,$A$68:$B$70,2,0))/3,"Calcular valor")) -> Calcular valor | H41: =+VLOOKUP(C41,Diagnóstico!$Q$5:$S$61,3,0) -> 0.1
B42: G. Administrativa y Financiera | C42: =+IF(Pivots!B51>0,Pivots!A51,"") -> Fontanero | G42: Calcular valor | H42: =+VLOOKUP(C42,Diagnóstico!$Q$5:$S$61,3,0) -> 0.03
B43: G. Administrativa y Financiera | C43: =+IF(Pivots!B52>0,Pivots!A52,"") -> Plan de Trabajo Anual | G43: Calcular valor | H43: =+VLOOKUP(C43,Diagnóstico!$Q$5:$S$61,3,0) -> 0.02
B44: G. Administrativa y Financiera | C44: =+IF(Pivots!B53>0,Pivots!A53,"") -> Libro de Actas Junta Directiva | G44: Calcular valor | H44: =+VLOOKUP(C44,Diagnóstico!$Q$5:$S$61,3,0) -> 0.01
B45: G. Administrativa y Financiera | C45: =+IF(Pivots!B54>0,Pivots!A54,"") -> Sistemas de gestión para la ASADAS | G45: Calcular valor | H45: =+VLOOKUP(C45,Diagnóstico!$Q$5:$S$61,3,0) -> 0.01
B46: G. Administrativa y Financiera | C46: =+IF(Pivots!B55>0,Pivots!A55,"") -> Estados financieros al último trimestre | G46: Calcular valor | H46: =+VLOOKUP(C46,Diagnóstico!$Q$5:$S$61,3,0) -> 0.01
B47: G. Administrativa y Financiera | C47: =+IF(Pivots!B56>0,Pivots!A56,"") -> Libro de Socios | G47: Calcular valor | H47: =+VLOOKUP(C47,Diagnóstico!$Q$5:$S$61,3,0) -> 0.01
B48: G. Administrativa y Financiera | C48: =+IF(Pivots!B57>0,Pivots!A57,"") -> Estados Financieros enviados a AyA | G48: Calcular valor | H48: =+VLOOKUP(C48,Diagnóstico!$Q$5:$S$61,3,0) -> 0.01
B49: G. Administrativa y Financiera | C49: =+IF(Pivots!B58>0,Pivots!A58,"") -> Respaldos de información Financiera | G49: Calcular valor | H49: =+VLOOKUP(C49,Diagnóstico!$Q$5:$S$61,3,0) -> 0.01
B50: G. Administrativa y Financiera | C50: =+IF(Pivots!B59>0,Pivots!A59,"") -> Servicios de Contabilidad | G50: Calcular valor | H50: =+VLOOKUP(C50,Diagnóstico!$Q$5:$S$61,3,0) -> 0.01
B51: G. Administrativa y Financiera | C51: =+IF(Pivots!B60>0,Pivots!A60,"") -> Custodia de ingresos | G51: Calcular valor | H51: =+VLOOKUP(C51,Diagnóstico!$Q$5:$S$61,3,0) -> 0.01
B52: G. Administrativa y Financiera | C52: =+IF(Pivots!B61>0,Pivots!A61,"") -> Bodega de materiales para operación y mantenimiento | G52: Calcular valor | H52: =+VLOOKUP(C52,Diagnóstico!$Q$5:$S$61,3,0) -> 0.01
B53: G. Administrativa y Financiera | C53: =+IF(Pivots!B62>0,Pivots!A62,"") -> Libro de Actas Asamblea | G53: Calcular valor | H53: =+VLOOKUP(C53,Diagnóstico!$Q$5:$S$61,3,0) -> 0.01
A55: Gestión de Saneamiento | B55: G. Saneamiento | C55: =+IF(Pivots!B67>0,Pivots!A67,"") -> Presentación de reportes operacionales | G55: =IF(C55="","",IFERROR((VLOOKUP(D55,$A$60:$B$62,2,0)+VLOOKUP(E55,$A$64:$B$66,2,0)+VLOOKUP(F55,$A$68:$B$70,2,0))/3,"Calcular valor")) -> Calcular valor | H55: =+VLOOKUP(C55,Diagnóstico!$Q$5:$S$61,3,0) -> 0.04
B56: G. Saneamiento | C56: =+IF(Pivots!B68>0,Pivots!A68,"") -> Condición del Alcantarillado Sanitario | G56: Calcular valor | H56: =+VLOOKUP(C56,Diagnóstico!$Q$5:$S$61,3,0) -> 0.03
B57: G. Saneamiento | C57: =+IF(Pivots!B69>0,Pivots!A69,"") -> Estado de la PTAR | G57: Calcular valor | H57: =+VLOOKUP(C57,Diagnóstico!$Q$5:$S$61,3,0) -> 0.03
A59: Criticidad
A60: No crítico | B60: 1
A61: Crítico | B61: 2
A62: Muy crítico | B62: 3
A63: Dificultad
A64: Díficil | B64: 1
A65: Intermedia | B65: 2
A66: Fácil | B66: 3
A67: Recursos disponibles
A68: No se tiene | B68: 1
A69: Se tiene aunque no suficiente | B69: 2
A70: Se tienen recursos | B70: 3

Sheet Resumen
A2: 4. Elección de variables a incluir en el PME
A4: Eje temático | B4: Variables | C4: Valor priorización | D4: % Faltante | E4: Variables a trabajar en PME | G4: 4.1 Análisis de Escenarios
A5: G.Comercial | B5: Macromedición existente | C5: 0 | D5: 0.01
B6: Sistema de Recaudación | C6: 0 | D6: 0.01 | G6: a) Escenario actual luego de aplicación del cuestionario
B7: Sistema de Facturación | C7: 0 | D7: 0.01
B8: Morosidad mensual | C8: 0 | D8: 0.01 | G8: % Actual | H8: Categoría Actual
B9: Seguimiento de quejas | C9: 0 | D9: 0.01 | G9: =+Diagnóstico!D68 -> 0.0183 | H9: =+Diagnóstico!B68 -> D
B10: Aplicación de tarifa vigente de ARESEP | C10: 0 | D10: 0.05
B11: Local para atención de Usuarios | C11: 0 | D11: 0.02 | G11: b) Escenario con la inclusión de variables marcadas con "X"
B12: Disponibilidad de agua para nuevos servicios | C12: 0 | D12: 0
B13: Frecuencia de la lectura de hidrómetros | C13: 0 | D13: 0.005 | G13: % con PME | H13: Categoría con PME
B14: Micromedición instalada | C14: 0 | D14: 0.0067 | G14: =+SUMIF($E$5:$E$50,"X",$D$5:$D$50)+G9 -> 0.0183 | H14: =+IF(G14<=0.39,"D",IF(G14<0.59,"C",IF(G14<0.8,"B","A"))) -> D
A15: G. Comunal | B15: Socios en las Asambleas | C15: 0 | D15: 0.03
B16: Campañas con escuelas/colegios | C16: 0 | D16: 0.03 | G16: Número de variables a incluir en PME | I16: =COUNTIF($E$5:$E$50,"X") -> 0
B17: Plan de Afiliación | C17: 0 | D17: 0.03
B18: Plan de Transparencia y Rendición de cuentas | C18: 0 | D18: 0.03
B19: Porcentaje de usuarios que son socios | C19: 0 | D19: 0.03
A20: G. Ambiental y de Recurso Hídrico | B20: Balance Hídrico | C20: 0 | D20: 0.04
B21: Programas de Adaptación Cambio Climático | C21: 0 | D21: 0.02
B22: Áreas de protección definidas | C22: 0 | D22: 0.04
B23: Inscripción de caudal en MINAE | C23: 0 | D23: 0.03
B24: Programas de educación ambiental en la comunidad | C24: 0 | D24: 0.02
A25: G. Sistemas de Agua | B25: Calidad del agua – Sistema de Desinfección | C25: 0 | D25: 0.03
B26: Contabilidad para hidrantes separada | C26: 0 | D26: 0.01
B27: Frecuencia de interrupciones del servicio | C27: 0 | D27: 0.02
B28: Mediciones de presión | C28: 0 | D28: 0.02
B29: Manual de mantenimiento y operación del sistema | C29: 0 | D29: 0.02
B30: Plan de Gestión de Riesgos | C30: 0 | D30: 0.02
B31: Plan de instalación de hidrantes | C31: 0 | D31: 0.01
B32: Calidad del agua – Periodicidad de los muestreos | C32: 0 | D32: 0.03
B33: Calidad del agua – Cumplimiento del RCA | C33: 0 | D33: 0.12
B34: Calidad del agua – implementación de medidas correctivas | C34: 0 | D34: 0.02
A35: G. Administrativa y Financiera | B35: Respaldos de información Financiera | C35: 0 | D35: 0.01
B36: Estados Financieros enviados a AyA | C36: 0 | D36: 0.01
B37: Sistemas de gestión para la ASADAS | C37: 0 | D37: 0.01
B38: Servicios de Contabilidad | C38: 0 | D38: 0.01
B39: Convenio de Delegación | C39: 0 | D39: 0.1
B40: Fontanero | C40: 0 | D40: 0.03
B41: Plan de Trabajo Anual | C41: 0 | D41: 0.02
B42: Libro de Actas Junta Directiva | C42: 0 | D42: 0.01
B43: Estados financieros al último trimestre | C43: 0 | D43: 0.01
B44: Libro de Socios | C44: 0 | D44: 0.01
B45: Custodia de ingresos | C45: 0 | D45: 0.01
B46: Bodega de materiales para operación y mantenimiento | C46: 0 | D46: 0.01
B47: Libro de Actas Asamblea | C47: 0 | D47: 0.01
A48: G. Saneamiento | B48: Condición del Alcantarillado Sanitario | C48: 0 | D48: 0.03
B49: Estado de la PTAR | C49: 0 | D49: 0.03
B50: Presentación de reportes operacionales | C50: 0 | D50: 0.04
A53: X

Sheet Plan
A2: 5. Plan de Mejora y Eficiencia
A4: Eje temático | B4: Variables a mejorar | C4: Objetivo | E4: Actividades | F4: Responsable | H4: Calendario de actividades | U4: Costo estimado | V4: Seguimiento
H5: Ene | I5: Feb | J5: Mar | K5: Abr | L5: May | M5: Jun | N5: Jul | O5: Ago | P5: Set | Q5: Oct | R5: Nov | S5: Dic | V5: Cumplimiento | W5: % de avance
A7: =IFERROR(IF(B7="","",VLOOKUP(B7,result.var,4,0)),"") ->  | B7: =IF(Pivots!D4="Total General","",Pivots!D4) ->  | C7: =IFERROR(IF(HLOOKUP(B$7,activ,2,0)=0,"",HLOOKUP(B$7,activ,2,0)),"") ->  | D7: 3 | E7: =IFERROR(IF(HLOOKUP(B$7,activ,D7,0)=0,"",HLOOKUP(B$7,activ,D7,0)),"") ->  | W7: =IFERROR(COUNTIF($V7:$V12,"Cumplido")/(6-COUNTIF($E7:$E12,"")),"") ->  | X7: Pendiente
D8: 4 | E8: =IFERROR(IF(HLOOKUP(B$7,activ,D8,0)=0,"",HLOOKUP(B$7,activ,D8,0)),"") ->  | X8: En proceso
D9: 5 | X9: Cumplido
D10: 6
D11: 7
D12: 8
A14: =IFERROR(IF(B14="","",VLOOKUP(B14,result.var,4,0)),"") ->  | B14: =IF(Pivots!D5="Total general","",Pivots!D5) -> 0 | C14: =IFERROR(IF(HLOOKUP(B$14,activ,2,0)=0,"",HLOOKUP(B$14,activ,2,0)),"") ->  | D14: 3 | E14: =IFERROR(IF(HLOOKUP(B$14,activ,D14,0)=0,"",HLOOKUP(B$14,activ,D14,0)),"") ->  | W14: =IFERROR(COUNTIF($V14:$V19,"Cumplido")/(6-COUNTIF($E14:$E19,"")),"") -> 
D15: 4
D16: 5
D17: 6
D18: 7
D19: 8
A21: =IFERROR(IF(B21="","",VLOOKUP(B21,result.var,4,0)),"") ->  | B21: =IF(Pivots!D6="Total general","",Pivots!D6) -> 0 | C21: =IFERROR(IF(HLOOKUP(B$21,activ,2,0)=0,"",HLOOKUP(B$21,activ,2,0)),"") ->  | D21: 3 | E21: =IFERROR(IF(HLOOKUP(B$21,activ,D21,0)=0,"",HLOOKUP(B$21,activ,D21,0)),"") ->  | W21: =IFERROR(COUNTIF($V21:$V26,"Cumplido")/(6-COUNTIF($E21:$E26,"")),"") -> 
D22: 4
D23: 5
D24: 6
D25: 7
D26: 8
A28: =IFERROR(IF(B28="","",VLOOKUP(B28,result.var,4,0)),"") ->  | B28: =IF(Pivots!D7="Total general","",Pivots!D7) -> 0 | C28: =IFERROR(IF(HLOOKUP(B$28,activ,2,0)=0,"",HLOOKUP(B$28,activ,2,0)),"") ->  | D28: 3 | E28: =IFERROR(IF(HLOOKUP(B$28,activ,D28,0)=0,"",HLOOKUP(B$28,activ,D28,0)),"") ->  | W28: =IFERROR(COUNTIF($V28:$V33,"Cumplido")/(6-COUNTIF($E28:$E33,"")),"") -> 
D29: 4
D30: 5
D31: 6
D32: 7
D33: 8
A35: =IFERROR(IF(B35="","",VLOOKUP(B35,result.var,4,0)),"") ->  | B35: =IF(Pivots!D8="Total general","",Pivots!D8) -> 0 | C35: =IFERROR(IF(HLOOKUP(B$35,activ,2,0)=0,"",HLOOKUP(B$35,activ,2,0)),"") ->  | D35: 3 | E35: =IFERROR(IF(HLOOKUP(B$35,activ,D35,0)=0,"",HLOOKUP(B$35,activ,D35,0)),"") ->  | W35: =IFERROR(COUNTIF($V35:$V40,"Cumplido")/(6-COUNTIF($E35:$E40,"")),"") -> 
D36: 4
D37: 5
D38: 6
D39: 7
D40: 8
A42: =IFERROR(IF(B42="","",VLOOKUP(B42,result.var,4,0)),"") ->  | B42: =IF(Pivots!D9="Total general","",Pivots!D9) -> 0 | C42: =IFERROR(IF(HLOOKUP(B$42,activ,2,0)=0,"",HLOOKUP(B$42,activ,2,0)),"") ->  | D42: 3 | E42: =IFERROR(IF(HLOOKUP(B$42,activ,D42,0)=0,"",HLOOKUP(B$42,activ,D42,0)),"") ->  | W42: =IFERROR(COUNTIF($V42:$V47,"Cumplido")/(6-COUNTIF($E42:$E47,"")),"") -> 
D43: 4
D44: 5
D45: 6
D46: 7
D47: 8
A49: =IFERROR(IF(B49="","",VLOOKUP(B49,result.var,4,0)),"") ->  | B49: =IF(Pivots!D10="Total general","",Pivots!D10) -> 0 | C49: =IFERROR(IF(HLOOKUP(B$49,activ,2,0)=0,"",HLOOKUP(B$49,activ,2,0)),"") ->  | D49: 3 | E49: =IFERROR(IF(HLOOKUP(B$49,activ,D49,0)=0,"",HLOOKUP(B$49,activ,D49,0)),"") ->  | W49: =IFERROR(COUNTIF($V49:$V54,"Cumplido")/(6-COUNTIF($E49:$E54,"")),"") -> 
D50: 4
D51: 5
D52: 6
D53: 7
D54: 8
A56: =IFERROR(IF(B56="","",VLOOKUP(B56,result.var,4,0)),"") ->  | B56: =IF(Pivots!D11="Total general","",Pivots!D11) -> 0 | C56: =IFERROR(IF(HLOOKUP(B$56,activ,2,0)=0,"",HLOOKUP(B$56,activ,2,0)),"") ->  | D56: 3 | E56: =IFERROR(IF(HLOOKUP(B$56,activ,D56,0)=0,"",HLOOKUP(B$56,activ,D56,0)),"") ->  | W56: =IFERROR(COUNTIF($V56:$V61,"Cumplido")/(6-COUNTIF($E56:$E61,"")),"") -> 
D57: 4
D58: 5
D59: 6
D60: 7
D61: 8
A63: =IFERROR(IF(B63="","",VLOOKUP(B63,result.var,4,0)),"") ->  | B63: =IF(Pivots!D12="Total general","",Pivots!D12) -> 0 | C63: =IFERROR(IF(HLOOKUP(B$63,activ,2,0)=0,"",HLOOKUP(B$63,activ,2,0)),"") ->  | D63: 3 | E63: =IFERROR(IF(HLOOKUP(B$63,activ,D63,0)=0,"",HLOOKUP(B$63,activ,D63,0)),"") ->  | W63: =IFERROR(COUNTIF($V63:$V68,"Cumplido")/(6-COUNTIF($E63:$E68,"")),"") -> 
D64: 4
D65: 5
D66: 6
D67: 7
D68: 8
A70: =IFERROR(IF(B70="","",VLOOKUP(B70,result.var,4,0)),"") ->  | B70: =IF(Pivots!D13="Total general","",Pivots!D13) -> 0 | C70: =IFERROR(IF(HLOOKUP(B$70,activ,2,0)=0,"",HLOOKUP(B$28,activ,2,0)),"") ->  | D70: 3 | E70: =IFERROR(IF(HLOOKUP(B$70,activ,D70,0)=0,"",HLOOKUP(B$70,activ,D70,0)),"") ->  | W70: =IFERROR(COUNTIF($V70:$V75,"Cumplido")/(6-COUNTIF($E70:$E75,"")),"") -> 
D71: 4 | E71: =IFERROR(IF(HLOOKUP(B$70,activ,D71,0)=0,"",HLOOKUP(B$70,activ,D71,0)),"") -> 
D72: 5 | E72: =IFERROR(IF(HLOOKUP(B$70,activ,D72,0)=0,"",HLOOKUP(B$70,activ,D72,0)),"") -> 
D73: 6
D74: 7
D75: 8
A77: =IFERROR(IF(B77="","",VLOOKUP(B77,result.var,4,0)),"") ->  | B77: =IF(Pivots!D14="Total general","",Pivots!D63) -> 0 | C77: =IFERROR(IF(HLOOKUP(B$77,activ,2,0)=0,"",HLOOKUP(B$77,activ,2,0)),"") ->  | D77: 3 | E77: =IFERROR(IF(HLOOKUP(B$77,activ,D77,0)=0,"",HLOOKUP(B$77,activ,D77,0)),"") ->  | W77: =IFERROR(COUNTIF($V77:$V82,"Cumplido")/(6-COUNTIF($E77:$E82,"")),"") -> 
D78: 4
D79: 5
D80: 6
D81: 7
D82: 8
A84: =IFERROR(IF(B84="","",VLOOKUP(B84,result.var,4,0)),"") ->  | B84: =IF(Pivots!D15="Total general","",Pivots!D64) -> 0 | C84: =IFERROR(IF(HLOOKUP(B$84,activ,2,0)=0,"",HLOOKUP(B$84,activ,2,0)),"") ->  | D84: 3 | E84: =IFERROR(IF(HLOOKUP(B$84,activ,D84,0)=0,"",HLOOKUP(B$84,activ,D84,0)),"") ->  | W84: =IFERROR(COUNTIF($V84:$V89,"Cumplido")/(6-COUNTIF($E84:$E89,"")),"") -> 
D85: 4
D86: 5
D87: 6
D88: 7
D89: 8
A91: =IFERROR(IF(B91="","",VLOOKUP(B91,result.var,4,0)),"") ->  | B91: =IF(Pivots!D16="Total general","",Pivots!D65) -> 0 | C91: =IFERROR(IF(HLOOKUP(B$91,activ,2,0)=0,"",HLOOKUP(B$91,activ,2,0)),"") ->  | D91: 3 | E91: =IFERROR(IF(HLOOKUP(B$91,activ,D91,0)=0,"",HLOOKUP(B$91,activ,D91,0)),"") ->  | W91: =IFERROR(COUNTIF($V91:$V96,"Cumplido")/(6-COUNTIF($E91:$E96,"")),"") -> 
D92: 4
D93: 5
D94: 6
D95: 7
D96: 8
A98: =IFERROR(IF(B98="","",VLOOKUP(B98,result.var,4,0)),"") ->  | B98: =IF(Pivots!D17="Total general","",Pivots!D66) -> 0 | C98: =IFERROR(IF(HLOOKUP(B$98,activ,2,0)=0,"",HLOOKUP(B$98,activ,2,0)),"") ->  | D98: 3 | E98: =IFERROR(IF(HLOOKUP(B$98,activ,D98,0)=0,"",HLOOKUP(B$98,activ,D98,0)),"") ->  | W98: =IFERROR(COUNTIF($V98:$V103,"Cumplido")/(6-COUNTIF($E98:$E103,"")),"") -> 
D99: 4
D100: 5
D101: 6
D102: 7
D103: 8
A105: =IFERROR(IF(B105="","",VLOOKUP(B105,result.var,4,0)),"") ->  | B105: =IF(Pivots!D18="Total general","",Pivots!D67) -> 0 | C105: =IFERROR(IF(HLOOKUP(B$105,activ,2,0)=0,"",HLOOKUP(B$105,activ,2,0)),"") ->  | D105: 3 | E105: =IFERROR(IF(HLOOKUP(B$105,activ,D105,0)=0,"",HLOOKUP(B$105,activ,D105,0)),"") ->  | W105: =IFERROR(COUNTIF($V105:$V110,"Cumplido")/(6-COUNTIF($E105:$E110,"")),"") -> 
D106: 4
D107: 5
D108: 6
D109: 7
D110: 8
A112: =IFERROR(IF(B112="","",VLOOKUP(B112,result.var,4,0)),"") ->  | B112: =IF(Pivots!D19="Total general","",Pivots!D68) -> 0 | C112: =IFERROR(IF(HLOOKUP(B$112,activ,2,0)=0,"",HLOOKUP(B$112,activ,2,0)),"") ->  | D112: 3 | E112: =IFERROR(IF(HLOOKUP(B$112,activ,D112,0)=0,"",HLOOKUP(B$112,activ,D112,0)),"") ->  | W112: =IFERROR(COUNTIF($V112:$V117,"Cumplido")/(6-COUNTIF($E112:$E117,"")),"") -> 
D113: 4
D114: 5
D115: 6
D116: 7
D117: 8
A119: =IFERROR(IF(B119="","",VLOOKUP(B119,result.var,4,0)),"") ->  | B119: =IF(Pivots!D20="Total general","",Pivots!D69) -> 0 | C119: =IFERROR(IF(HLOOKUP(B$119,activ,2,0)=0,"",HLOOKUP(B$119,activ,2,0)),"") ->  | D119: 3 | E119: =IFERROR(IF(HLOOKUP(B$119,activ,D119,0)=0,"",HLOOKUP(B$119,activ,D119,0)),"") ->  | W119: =IFERROR(COUNTIF($V119:$V124,"Cumplido")/(6-COUNTIF($E119:$E124,"")),"") -> 
D120: 4
D121: 5
D122: 6
D123: 7
D124: 8
A126: =IFERROR(IF(B126="","",VLOOKUP(B126,result.var,4,0)),"") ->  | B126: =IF(Pivots!D21="Total general","",Pivots!D70) -> 0 | C126: =IFERROR(IF(HLOOKUP(B$126,activ,2,0)=0,"",HLOOKUP(B$126,activ,2,0)),"") ->  | D126: 3 | E126: =IFERROR(IF(HLOOKUP(B$126,activ,D126,0)=0,"",HLOOKUP(B$126,activ,D126,0)),"") ->  | W126: =IFERROR(COUNTIF($V126:$V131,"Cumplido")/(6-COUNTIF($E126:$E131,"")),"") -> 
D127: 4
D128: 5
D129: 6
D130: 7
D131: 8
A133: ADICIONAL | D133: 3 | W133: =IFERROR(COUNTIF($V133:$V138,"Cumplido")/(6-COUNTIF($E133:$E138,"")),"") -> 
D134: 4
D135: 5
D136: 6
D137: 7
D138: 8
A140: ADICIONAL | D140: 3 | W140: =IFERROR(COUNTIF($V140:$V145,"Cumplido")/(6-COUNTIF($E140:$E145,"")),"") -> 
D141: 4
D142: 5
D143: 6
D144: 7
D145: 8

Sheet DB act (hidden)
A1: BD_activ | B1: Convenio de Delegación | C1: Plan de Trabajo Anual | D1: Libro de Actas Junta Directiva | E1: Libro de Actas Asamblea | F1: Libro de Socios | G1: Fontanero | H1: Servicios de Contabilidad | I1: Estados financieros al último trimestre | J1: Custodia de ingresos | K1: Respaldos de información Financiera | L1: Estados Financieros enviados a AyA | M1: Bodega de materiales para operación y mantenimiento | N1: Sistemas de gestión para la ASADAS | O1: Disponibilidad de agua para nuevos servicios | P1: Micromedición instalada | Q1: Macromedición existente | R1: Frecuencia de la lectura de hidrómetros | S1: Sistema de Facturación | T1: Sistema de Recaudación | U1: Morosidad mensual | V1: Aplicación de tarifa vigente de ARESEP | W1: Local para atención de Usuarios | X1: Seguimiento de quejas | Y1: Porcentaje de usuarios que son socios | Z1: Socios en las Asambleas | AA1: Plan de Afiliación | AB1: Campañas con escuelas/colegios | AC1: Plan de Transparencia y Rendición de cuentas | AD1: Áreas de protección definidas | AE1: Programas de Adaptación Cambio Climático | AF1: Balance hídrico | AG1: Programas de educación ambiental en la comunidad | AH1: Inscripción de caudal en MINAE | AI1: Manual de mantenimiento y operación del sistema | AJ1: Frecuencia de interrupciones del servicio | AK1: Mediciones de presión | AL1: Plan de Gestión de Riesgos | AM1: Calidad del agua – Periodicidad de los muestreos | AN1: Calidad del agua – Cumplimiento del RCA | AO1: Calidad del agua – implementación de medidas correctivas | AP1: Calidad del agua – Sistema de Desinfección | AQ1: Plan de instalación de hidrantes | AR1: Contabilidad para hidrantes separada | AS1: Condición del Alcantarillado Sanitario | AT1: Presentación de reportes operacionales | AU1: Estado de la PTAR
A2: Objetivo | B2: Contar con el convenio de delegación para prestar servicios públicos | C2: Contar con el Plan Anual como instrumento de gestión para alcanzar los objetivos de la ASADA | D2: Contar con un libro de actas para actualizar acuerdos tomados por Junta Directiva | E2: Contar con un libro de actas de asamblea para actualizar acuerdos en la asamblea anual y extraordinaria | F2: Contar con un libro de socios y boleta de afiliación para anotar actualizaciones a la lista de socios | G2: Contar con fontanero contratado para la gestión operativa del acueducto | H2: Contar con un contador contratado para generar, asesorar, comunicar sobre la información financiera de la ASADA | I2: Contar con estados financieros actualizados para mejorar la rendición de cuentas interna y externa | J2: Contar con una cuenta a nombre de la ASADA para fortalecer control interno de la ASADA | K2: Contar con procedimientos para que la información financiera ya sea física o digital se guarde apropiadamente | L2: Contar con un registro de estados financieros enviados al AYA para cumplir convenio de delegación | M2: Contar con una bodega para mantener seguro, ordenado y controlado los materiales con que cuenta la ASADA | N2: Contar con un sistema informático para una gestión más ágil de la ASADAS | O2: Contar con un estudio de capacidad hídrica e hidráulica para conocer la disponibilidad de agua para nuevos servicios | P2: Contar con plan de micro medición para la reducción de agua no contabilizada | Q2: Contar con equipos de macro medición para conocer cuánta agua producen las fuentes | R2: Contar con un plan mensual para la lectura de micro medidores | S2: Contar con un sistema informático para la facturación | T2: Contar con un sistema informático para la recaudación | U2: Contar con un plan para reducir los pendientes de cobro | V2: Aplicar la tarifa vigente de ARESEP para un cobro justo y real del agua | W2: Contar con un espacio para la atención de usuarios | X2: Contar con un registro para la recepción quejas y resolución de reclamos | Y2: Contar con un plan de afiliación para aumentar la participación de miembros con vos y voto | Z2: Contar con un plan de afiliación para aumentar la participación en la asamblea | AA2: Contar con un plan de afiliación para aumentar el número de asociados a la ASADA | AB2: Contar con un plan de promoción para realizar campañas con escuelas y colegios | AC2: Contar con un plan para una gestión basada en principios de transparencia y rendición de cuentas. | AD2: Contar con el Estudio Hidrogeológico para que la ASADA conozca donde se recargan sus fuentes de agua | AE2: Contar con un Plan para la Adaptación al cambio climático | AF2: Contar con un Estudio de balance hídrico como base para poder otorgar nuevas disponibilidades de agua | AG2: Contar con un plan de promoción para realizar campañas en la comunidad | AH2: Contar con un estudio de nuevas fuentes para enviar solicitud al AYA para inscripción de caudal | AI2: Contar con un manual de mantenimiento y operación del sistema para garantizar la sostenibilidad del servicio de agua | AJ2: Contar con un registro actualizado de continuidad del servicio para conocer el día, tiempo y acciones correctivas por interrupción | AK2: Contar con un programa de medición de presión para garantizar agua en cantidad a sus usuarios | AL2: Contar con un plan de gestión de riesgos, para reducir la vulnerabilidad y consecuencia de los riesgos en la ASADA | AM2: Contar con programa de periodicidad de los muestreos para garantizar la calidad de agua a sus usuarios | AN2: Cumplir con el Reglamento de Calidad de Agua para garantizar la calidad del agua a sus usuarios | AO2: Implementar medidas correctivas dadas por el Laboratorio de Agua del AYA para garantizar la calidad del agua a sus usuarios | AP2: Contar con un sistema de desinfección para garantizar la calidad del agua | AQ2: Contar con un plan de instalación de hidrantes para atención de emergencias | AR2: Contar contabilidad separada de hidrantes para conocer costos
A3: 1 | B3: Tomar el acuerdo de Junta directiva que autoriza al Presidente a gestionar y firmar el convenio ante el AYA | C3: Elaborar un diagnóstico de la situación de la ASADA | D3: Buscar el libro de actas | E3: Buscar el libro de Asambleas | F3: Crear plan de Afiliación | G3: Definir modalidad de contratación del fontanero | H3: Buscar profesionales o empresas que den servicios de contaduría para Asadas | I3: Solicitar al contador estados financieros | J3: Crear cuenta bancaria a nombre de la ASADA | K3: Establecer un procedimiento de respaldo para la documentación financiera física que reciba la ASADA | L3: Pedir los estados financieros al contador | M3: Establecer requerimientos de espacio para contar con una bodega | N3: Conocer ofertas de mercado de sistemas computarizados para la gestión de ASADAS: | O3: Desarrollar estudio de Capacidad Hídrica | P3: Realizar un diagnóstico de micro medición existente | Q3: Definir requerimientos de macro medición | R3: Establecer un plan de lecturas de micro medidores mensual | S3: Buscar ofertas de mercado sobre sistemas computarizados para la gestión de ASADAS | T3: Buscar ofertas de mercado sobre sistemas computarizados para la gestión de ASADAS: | U3: Lineamiento de Junta Directiva de reducción de pendientes | V3: Aplicar la tarifa aplicada por la ARESEP | W3: Establecer requerimientos de espacio para atención de usuarios | X3: Establecer un registro de recepción y resolución reclamos | Y3: Elaborar un plan de afiliación | Z3: Elaborar un plan de Afiliación | AA3: Elaborar un plan de Afiliación | AB3: Elaborar un plan de promoción | AC3: Hacer el plan considerando el alineamiento con las otras áreas | AD3: Realizar un Estudio Hidrogeológico | AE3: Hacer un plan de Adaptación al cambio climático | AF3: Realizar un estudio de balance hídrico | AG3: Elaborar un plan de promoción | AH3: Estudiar la nueva fuente en cuanto a producción y calidad | AI3: Identificar y evaluar los componentes del sistema de acueducto | AJ3: Establecer un registro de Continuidad del servicio | AK3: Establecer un programa de mediciones | AL3: Hacer el plan de Gestión de Riesgo | AM3: Establecer periodicidad de muestreos de acuerdo al reglamento de capacidad de agua | AN3: Analizar los resultados del laboratorio del agua | AO3: Analizar el parámetro no cumplido | AP3: Definir requerimiento de Desinfección | AQ3: Hacer un plan de instalación de hidrantes | AR3: Llevar registros contables separados para hidrantes
A4: 2 | B4: Buscar documentos y requisitos requeridos para solicitar el convenio ante el AYA | C4: Definir actividades que se incluirán en el plan | D4: Actualizar registrando acuerdos tomados por la Junta Directiva | E4: Actualizar el libro una vez al año con los acuerdos de la Asamblea | F4: La ASADA debe contar con una boleta de afiliación que incluya los datos: | G4: Buscar candidatos elegibles | H4: Establecer un contrato de servicios con el contador | I4: Remitir estados financieros a la oficina Regional | J4: Depositar todos los ingresos recibidos por la ASADA inmediatamente en la cuenta | K4: Establecer procedimientos de respaldo para la información digital de información | L4: Remitir copia de estados financieros a la ORAC | M4: Buscar el espacio | N4: Cotizar el servicio con las empresas proveedoras | O4: Desarrollar estudio de Capacidad Hidráulica | P4: Desarrollar un Plan de sensibilización de reducción agua no contabilizada a los usuarios | Q4: Adquisición e instalación de macro medidores | R4: Ejecutar el plan de restauración | S4: Solicitar una demostración del sistema de facturación | T4: Solicitar una demostración del sistema de recaudación | U4: Establecer un plan de reducción de pendientes de cobro | W4: Equipar el espacio | X4: Dar seguimiento a las quejas | Y4: Diseñar boletas de afiliación | Z4: Aumentar la participación en la asamblea de miembros con voz y voto | AA4: Desarrollar mecanismos de divulgación | AB4: Coordinar y Planificar con las escuelas y colegios al inicio del año | AC4: Aprobar el plan por junta directiva | AD4: Definir donde están las áreas de protección | AE4: Aprobar por Junta Directiva | AF4: Contratar al especialista | AG4: Coordinar y Planificar con líderes comunales | AH4: Enviar solicitud al AYA para Inscripción de caudal | AI4: Definir frecuencia de mantenimiento | AJ4: Indicar el día de interrupción | AK4: Contar con un medidor de presión | AL4: Aprobar el plan por junta directiva | AM4: Definir Periodicidad | AN4: Implementar medidas correctivas: si no cumple | AO4: Realizar correcciones especificas por parámetro | AP4: Buscar ofertas de Mercado | AQ4: Aprobar por Junta Directiva
A5: 3 | B5: Entregar al AYA documentos y requisitos | C5: Aprobar el plan mediante acuerdo de Junta Directiva | D5: Libro de actas debe estar firmado por el presidente y secretaria | E5: En caso de Asamblea extraordinaria, también actualizar | F5: La Junta directiva conoce la Boleta y acuerda afiliar o rechazar la afiliación | G5: Contratar el fontanero | H5: Recibir y analizar periódicamente los estados financieros que entregue el contador | I5: Seguimiento a los estados financieros | J5: Establecer mecanismos de control para el manejo de la cuenta | L5: Mantener un registro de estados financieros enviados al AYA | M5: Equipar el espacio de la bodega | N5: Buscar la mejor opción para la ASADA | O5: Para ambas se necesita el apoyo de un ingeniero, en algunos casos el AYA puede apoyar | P5: Desarrollar un Plan para instalar los medidores que falten | Q5: Establecer un registro de mediciones del macro medidor | R5: Establecer rutas de lectura | S5: Cotizar el servicio con las empresas proveedoras | T5: Cotizar el servicio con las empresas proveedoras | U5: Establecer procedimiento de reconexión | W5: Definir horarios de atención a usuarios | X5: Comunicar a los usuarios la resolución de su queja | Y5: Definir procedimiento de afiliaciones | Z5: Desarrollar Mecanismos de divulgación | AA5: Recalcar la importancia de ser afiliado | AB5: Celebración del día del agua, ambiente y del árbol con jóvenes y niños | AC5: Ejecutar el plan | AD5: Demarcar de áreas de protección | AE5: Conseguir Recursos | AF5: Recepción y análisis del estudio técnico | AG5: Celebración del día del agua, ambiente y del árbol | AH5: AYA realiza la inscripción al MINAE | AI5: Definir rutinas de operación | AJ5: Indicar tiempos de interrupción | AK5: Definir lugares del sistema para medir presión | AM5: Muestra según la periodicidad | AO5: La acción correctiva es diferente dependiendo del indicador | AP5: Adquirir e Instalar el equipo | AQ5: Conseguir Recursos
A6: 4 | B6: Dar seguimiento ante la oficina regional de los tramites | C6: Enviar copia de Plan de Trabajo aprobado a la Oficina Regional | D6: Actualizar el libro cada sesión de Junta Directiva | E6: Libro Actas de Asamblea firmado por el presidente y secretaria | F6: Si la Junta Directiva acuerda afiliar anotan los datos en la lista de socios | G6: Formalizar relación laboral con la ASADA | I6: Cumplimiento a las recomendaciones del contador | M6: Mantener ordenado el stock bodega | N6: Contratar el servicio o comprar el sistema | P6: Realizar lecturas de manera periódicas | R6: Este es un trabajo que realiza el fontanero | S6: Buscar la mejor opción para la ASADA | T6: Buscar la mejor opción para la ASADA | Z6: Aprobar el plan por junta directiva | AA6: Aprobar el plan por junta directiva | AB6: Visitar de fuentes de agua | AD6: Realizar Actividades de Protección de estas áreas | AE6: Ejecutar y dar Seguimiento | AF6: Implementar las mejoras y recomendaciones dadas por el estudio técnico | AG6: Realizar Visita de fuentes de agua | AH6: AYA envía respuesta del MINAE a la ASADA | AI6: Aprobar manual en Junta Directiva | AJ6: Acciones correctivas | AK6: Definir frecuencia de mediciones | AM6: Ajustarse al Reglamento manual | AO6: Ejecutar acción correctiva | AP6: Capacitar Fontanero en su uso y dosificación | AQ6: Ejecutar y dar Seguimiento
A7: 5 | E7: Seguir Requisitos para libros de actas según ley 218 | F7: Libro de socios debe estar actualizado cada vez que un usuario se afilia | M7: Establecer controles de entrada y salida | P7: Contar con un Plan de mantenimiento y sustitución de medidores | S7: Contratar el servicio o comprar el sistema | T7: Contratar el servicio o comprar el sistema | Z7: Ejecutar el plan | AA7: Ejecutar el plan | AB7: Realizar actividades de reforestación | AD7: Recuperar de áreas de protección | AE7: Utilizar metodología brindada por el AYA | AG7: Realizar Actividades de reforestación | AI7: Capacitar al fontanero en el uso del Manual | AJ7: Implementar el Registro | AP7: Establecer Programa de mantenimiento del equipo
A8: 6 | M8: Establecer inventarios de materiales en bodega periódicamente | T8: Incluir vínculo con agente recaudador (banco o cooperativa) | AD8: Buscar el apoyo de un ingeniero especialista
A9: 7
A10: 8
A11: 9
A12: 10

Sheet Información
A1: Eje temático | B1: Variable | C1: Objetivo | D1: Actividades para completar objetivo | E1: Evidencia
A2: Gestión Administrativa y Financiera | B2: Convenio de Delegación | C2: Contar con el convenio de delegación para prestar servicios públicos | D2: Tomar el acuerdo de Junta directiva que autoriza al Presidente a gestionar y firmar el convenio ante el AYA | E2: Convenio de delegación firmado
D3: Buscar documentos y requisitos requeridos para solicitar el convenio ante el AYA
D4: Entregar al AYA documentos y requisitos
D5: Dar seguimiento ante la oficina regional de los trámites
B6: Plan de Trabajo Anual | C6: Contar con el Plan Anual como instrumento de gestión para alcanzar los objetivos de la ASADA | D6: Elaborar un diagnóstico de la situación de la ASADA | E6: Plan de Trabajo Anual
D7: Definir actividades que se incluirán en el plan
D8: Aprobar el plan mediante acuerdo de Junta Directiva
D9: Enviar copia de Plan de Trabajo aprobado a la Oficina Regional
B10: Libro de Actas Junta Directiva | C10: Contar con un libro de actas para actualizar acuerdos tomados por Junta Directiva | D10: Buscar el libro de actas | E10: Libro de Actas Junta Directiva firmado y actualizado
D11: Actualizar registrando acuerdos tomados por la Junta Directiva
D12: Libro de actas debe estar firmado por el presidente y secretaria
D13: Actualizar el libro cada sesión de Junta Directiva
B14: Libro de Actas Asamblea | C14: Contar con un libro de actas de asamblea para actualizar acuerdos en la asamblea anual y extraordinaria | D14: Buscar el libro de Asambleas | E14: Libro de Actas Asamblea actualizado
D15: Actualizar el libro una vez al año con los acuerdos de la Asamblea
D16: En caso de Asamblea extraordinaria, también actualizar
D17: Libro Actas de Asamblea firmado por el presidente y secretaria
D18: Seguir Requisitos para libros de actas según ley 218
B19: Libro de Socios | C19: Contar con un libro de socios y boleta de afiliación para anotar actualizaciones a la lista de socios | D19: Crear plan de Afiliación | E19: Libro de Socios actualizado
D20: La ASADA debe contar con una boleta de afiliación que incluya todos los datos pertinentes
D21: La Junta directiva conoce la Boleta y acuerda afiliar o rechazar la afiliación
D22: Si la Junta Directiva acuerda afiliar anotan los datos en la lista de socios
D23: Libro de socios debe estar actualizado cada vez que un usuario se afilia
B24: Fontanero | C24: Contar con fontanero contratado para la gestión operativa del acueducto | D24: Definir modalidad de contratación del fontanero | E24: Contrato de trabajo con fontanero
D25: Buscar candidatos elegibles
D26: Contratar el fontanero
D27: Formalizar relación laboral con la ASADA
B28: Servicios de Contabilidad | C28: Contar con un contador contratado para generar, asesorar, comunicar sobre la información financiera de la ASADA | D28: Buscar profesionales o empresas que den servicios de contabilidad para Asadas | E28: Libros contables al día
D29: Establecer un contrato de servicios con el contador
D30: Recibir y analizar periódicamente los estados financieros que entregue el contador
B31: Estados financieros actualizados | C31: Contar con estados financieros actualizados para mejorar la rendición de cuentas interna y externa | D31: Solicitar al contador estados financieros | E31: Estados financieros actualizados
D32: Remitir estados financieros a la oficina Regional
D33: Seguimiento a los estados financieros
D34: Cumplimiento a las recomendaciones del contador
B35: Custodia de ingresos | C35: Contar con una cuenta a nombre de la ASADA para fortalecer control interno de la ASADA | D35: Crear cuenta bancaria a nombre de la ASADA | E35: Información de cuenta bancaria a nombre de la ASADA
D36: Depositar todos los ingresos recibidos por la ASADA inmediatamente en la cuenta
D37: Establecer mecanismos de control para el manejo de la cuenta
B38: Respaldos de información Financiera | C38: Contar con procedimientos para que la información financiera ya sea física o digital se guarde apropiadamente | D38: Establecer un procedimiento de respaldo para la documentación financiera física que reciba la ASADA | E38: Respaldos de información Financiera
D39: Establecer procedimientos de respaldo para la información digital de información
B40: Estados Financieros enviados a AyA | C40: Contar con un registro de estados financieros enviados al AYA para cumplir convenio de delegación | D40: Pedir los estados financieros al contador | E40: Comprobante de envío de Estados Financieros
D41: Remitir copia de estados financieros a la ORAC
D42: Mantener un registro de estados financieros enviados al AYA
B43: Bodega de materiales para operación y mantenimiento | C43: Contar con una bodega para mantener seguro, ordenado y controlado los materiales con que cuenta la ASADA | D43: Establecer requerimientos de espacio para contar con una bodega | E43: Bodega de materiales en uso
D44: Buscar el espacio
D45: Equipar el espacio de la bodega
D46: Mantener ordenado el stock bodega
D47: Establecer controles de entrada y salida
D48: Establecer inventarios de materiales en bodega periódicamente
B49: Sistemas de gestión para la ASADAS | C49: Contar con un sistema informático para una gestión más ágil de la ASADAS | D49: Conocer ofertas de mercado de sistemas computarizados para la gestión de ASADAS: | E49: Sistema de Gestión actualizado y en uso
D50: Cotizar el servicio con las empresas proveedoras
D51: Buscar la mejor opción para la ASADA
D52: Contratar el servicio o comprar el sistema
A53: Gestión Comercial | B53: Disponibilidad de agua para nuevos servicios | C53: Contar con un estudio de capacidad hídrica e hidráulica para conocer la disponibilidad de agua para nuevos servicios | D53: Desarrollar estudio de Capacidad Hídrica | E53: Estudio de capacidad hídrica
D54: Desarrollar estudio de Capacidad Hidráulica
D55: Para ambas se necesita el apoyo de un ingeniero, en algunos casos el AYA puede apoyar
B56: Micromedición instalada | C56: Contar con plan de micro medición para la reducción de agua no contabilizada | D56: Realizar un diagnóstico de micro medición existente | E56: Catastro de hidrómetros
D57: Desarrollar un Plan de sensibilización de reducción agua no contabilizada a los usuarios
D58: Desarrollar un Plan para instalar los medidores que falten
D59: Realizar lecturas de manera periódicas
D60: Contar con un Plan de mantenimiento y sustitución de medidores
B61: Macromedición existente | C61: Contar con equipos de macro medición para conocer cuánta agua producen las fuentes | D61: Definir requerimientos de macro medición | E61: Registro de macro medidores
D62: Adquisición e instalación de macro medidores
D63: Establecer un registro de mediciones del macro medidor
B64: Frecuencia de la lectura de hidrómetros | C64: Contar con un plan mensual para la lectura de micro medidores | D64: Establecer un plan de lecturas de micro medidores mensual | E64: Última lectura de hidrómetros
D65: Ejecutar el plan de restauración
D66: Establecer rutas de lectura
D67: Este es un trabajo que realiza el fontanero
B68: Sistema de Facturación | C68: Contar con un sistema informático para la facturación | D68: Buscar ofertas de mercado sobre sistemas computarizados para la gestión de ASADAS | E68: Sistema de Facturación
D69: Solicitar una demostración del sistema de facturación
D70: Cotizar el servicio con las empresas proveedoras
D71: Buscar la mejor opción para la ASADA
D72: Contratar el servicio o comprar el sistema
B73: Sistema de Recaudación | C73: Contar con un sistema informático para la recaudación | D73: Buscar ofertas de mercado sobre sistemas computarizados para la gestión de ASADAS | E73: Sistema de Recaudación
D74: Solicitar una demostración del sistema de recaudación
D75: Cotizar el servicio con las empresas proveedoras
D76: Buscar la mejor opción para la ASADA
D77: Contratar el servicio o comprar el sistema
B78: Morosidad mensual | C78: Contar con un plan para reducir los pendientes de cobro | D78: Lineamiento de Junta Directiva de reducción de pendientes | E78: Informe de morosidad
D79: Establecer un plan de reducción de pendientes de cobro
D80: Establecer procedimiento de reconexión
B81: Aplicación de tarifa vigente de ARESEP | C81: Aplicar la tarifa vigente de ARESEP para un cobro justo y real del agua | D81: Aplicar la tarifa aplicada por la ARESEP | E81: Tarifa vigente vs Tarifa ARESEP
B82: Local para atención de Usuarios | C82: Contar con un espacio para la atención de usuarios | D82: Establecer requerimientos de espacio para atención de usuarios | E82: Local para atención de Usuarios
D83: Equipar el espacio
D84: Definir horarios de atención a usuarios
B85: Seguimiento de quejas. | C85: Contar con un registro para la recepción quejas y resolución de reclamos | D85: Establecer un registro de recepción y resolución reclamos | E85: Registro de quejas y medidas correctivas
D86: Dar seguimiento a las quejas
D87: Comunicar a los usuarios la resolución de su queja
A88: Gestión Comunal | B88: Porcentaje de usuarios que son socios | C88: Contar con un plan de afiliación para aumentar la participación de miembros con vos y voto | D88: Elaborar un plan de afiliación | E88: Libro de Socios
D89: Diseñar boletas de afiliación
D90: Definir procedimiento de afiliaciones
B91: Socios en las Asambleas | C91: Contar con un plan de afiliación para aumentar la participación en la asamblea | D91: Elaborar un plan de Afiliación | E91: Ejecución del plan de afiliación
D92: Aumentar la participación en la asamblea de miembros con voz y voto
D93: Desarrollar Mecanismos de divulgación
D94: Aprobar el plan por junta directiva
D95: Ejecutar el plan
B96: Plan de Afiliación | C96: Contar con un plan de afiliación para aumentar el número de asociados a la ASADA | D96: Elaborar un plan de Afiliación | E96: Plan de Afiliación
D97: Desarrollar mecanismos de divulgación
D98: Recalcar la importancia de ser afiliado
D99: Aprobar el plan por junta directiva
D100: Ejecutar el plan
B101: Campañas con escuelas/colegios | C101: Contar con un plan de promoción para realizar campañas con escuelas y colegios | D101: Elaborar un plan de promoción | E101: Plan de campañas de promoción
D102: Coordinar y Planificar con las escuelas y colegios al inicio del año
D103: Celebración del día del agua, ambiente y del árbol con jóvenes y niños
D104: Visitar de fuentes de agua
D105: Realizar actividades de reforestación
B106: Plan de Transparencia y Rendición de cuentas | C106: Contar con un mecanismos de rendición de cuentas y transparencia de la gestión | D106: Definir los lineamientos de transparencia y rendición de cuentas a operar, el medio para publicarlos y la frecuencia | E106: Plan de Transparencia y Rendición de cuentas
D107: Aprobar los lineamientos por junta directiva
D108: Ejecutar el plan
A109: Gestión Recurso Hídrico | B109: Áreas de protección definidas | C109: Contar con el Estudio Hidrogeológico para que la ASADA conozca donde se recargan sus fuentes de agua | D109: Buscar el apoyo de un ingeniero especialista | E109: Informe de estudio hídrico
D110: Realizar un Estudio Hidrogeológico
D111: Definir donde están las áreas de protección
D112: Demarcar de áreas de protección
D113: Realizar Actividades de Protección de estas áreas
D114: Recuperar de áreas de protección
B115: Programas de Adaptación Cambio Climático | C115: Contar con un Plan para la Adaptación al cambio climático | D115: Hacer un plan de Adaptación al cambio climático | E115: Programas de Adaptación Cambio Climático
D116: Aprobar por Junta Directiva
D117: Conseguir Recursos
D118: Ejecutar y dar Seguimiento
D119: Utilizar metodología brindada por el AYA
B120: Balance hídrico | C120: Contar con un Estudio de balance hídrico como base para poder otorgar nuevas disponibilidades de agua | D120: Realizar un estudio de balance hídrico | E120: Informe de balance hídrico
D121: Contratar al especialista
D122: Recepción y análisis del estudio técnico
D123: Implementar las mejoras y recomendaciones dadas por el estudio técnico
B124: Programas de educación ambiental en la comunidad | C124: Contar con un plan de promoción para realizar campañas en la comunidad | D124: Elaborar un plan de promoción | E124: Informe de actividades realizadas
D125: Coordinar y Planificar con líderes comunales
D126: Celebración del día del agua, ambiente y del árbol
D127: Realizar Visita de fuentes de agua
D128: Realizar Actividades de reforestación
B129: Inscripción de caudal en MINAE | C129: Contar con un estudio de nuevas fuentes para enviar solicitud al AYA para inscripción de caudal | D129: Estudiar la nueva fuente en cuanto a producción y calidad | E129: Inscripción de caudal en MINAE
D130: Enviar solicitud al AYA para Inscripción de caudal
D131: AYA realiza la inscripción al MINAE
D132: AYA envía respuesta del MINAE a la ASADA
A133: Gestión Agua Potable y Saneamiento | B133: Manual de mantenimiento y operación del sistema | C133: Contar con un manual de mantenimiento y operación del sistema para garantizar la sostenibilidad del servicio de agua | D133: Identificar y evaluar los componentes del sistema de acueducto | E133: Manual de mantenimiento y operación del sistema
D134: Definir frecuencia de mantenimiento
D135: Definir rutinas de operación
D136: Aprobar manual en Junta Directiva
D137: Capacitar al fontanero en el uso del Manual
B138: Frecuencia de interrupciones del servicio | C138: Contar con un registro actualizado de continuidad del servicio para conocer el día, tiempo y acciones correctivas por interrupción | D138: Establecer un registro de Continuidad del servicio | E138: Reporte de interrupciones en el último año
D139: Indicar el día de interrupción
D140: Indicar tiempos de interrupción
D141: Acciones correctivas
D142: Implementar el Registro
B143: Mediciones de presión | C143: Contar con un programa de medición de presión para garantizar agua en cantidad a sus usuarios | D143: Establecer un programa de mediciones | E143: Resultados de mediciones de presión periódicas
D144: Contar con un medidor de presión
D145: Definir lugares del sistema para medir presión
D146: Definir frecuencia de mediciones
B147: Plan de Gestión de Riesgos | C147: Contar con un plan de gestión de riesgos, para reducir la vulnerabilidad y consecuencia de los riesgos en la ASADA | D147: Hacer el plan de Gestión de Riesgo | E147: Plan de Gestión de Riesgos
D148: Aprobar el plan por junta directiva
B149: Calidad del agua – Periodicidad de los muestreos | C149: Contar con programa de periodicidad de los muestreos para garantizar la calidad de agua a sus usuarios | D149: Establecer periodicidad de muestreos de acuerdo al reglamento de capacidad de agua | E149: Reporte de resultados de RCA
D150: Definir Periodicidad
D151: Muestra según la periodicidad
D152: Ajustarse al Reglamento manual
B153: Calidad del agua – Cumplimiento del RCA | C153: Cumplir con el Reglamento de Calidad de Agua para garantizar la calidad del agua a sus usuarios | D153: Analizar los resultados del laboratorio del agua | E153: Reporte de resultados de RCA
D154: Implementar medidas correctivas: si no cumple
B155: Calidad del agua – implementación de medidas correctivas | C155: Implementar medidas correctivas dadas por el Laboratorio de Agua del AYA para garantizar la calidad del agua a sus usuarios | D155: Analizar el parámetro no cumplido | E155: Bitácora de acciones correctivas
D156: Realizar correcciones especificas por parámetro
D157: La acción correctiva es diferente dependiendo del indicador
D158: Ejecutar acción correctiva
B159: Calidad del agua – Sistema de Desinfección | C159: Contar con un sistema de desinfección para garantizar la calidad del agua | D159: Definir requerimiento de Desinfección | E159: Reporte de mantenimiento de sistemas de desinfección
D160: Buscar ofertas de Mercado
D161: Adquirir e Instalar el equipo
D162: Capacitar Fontanero en su uso y dosificación
D163: Establecer Programa de mantenimiento del equipo
B164: Plan de instalación de hidrantes | C164: Contar con un plan de instalación de hidrantes para atención de emergencias | D164: Hacer un plan de instalación de hidrantes | E164: Catastro de hidrantes
D165: Aprobar por Junta Directiva
D166: Conseguir Recursos
D167: Ejecutar y dar Seguimiento
B168: Contabilidad para hidrantes separada | C168: Contar contabilidad separada de hidrantes para conocer costos | D168: Llevar registros contables separados para hidrantes | E168: Libros contables de hidrantes
A169: Gestión Saneamiento | B169: Condición del Alcantarillado Sanitario | E169: Responda si cuenta o no con alcantarillado sanitario
B170: Presentación de reportes operacionales | E170: Responda si cuenta o no con alcantarillado sanitario
B171: Estado de la PTAR | E171: Responda si cuenta o no con alcantarillado sanitario

Sheet Seguimiento (hidden)
A1: Fecha | B1: Nombre ASADA | C1: Región | D1: Cantón | E1: Distrito | F1: Teléfono | G1: Número de conexiones o servicios | H1: Número de comunidades | I1: Sistema de Facturación | J1: Frecuencia de la lectura de hidrómetros | K1: Micromedición instalada | L1: Disponibilidad de agua para nuevos servicios | M1: Macromedición existente | N1: Sistema de Recaudación | O1: Morosidad mensual | P1: Aplicación de tarifa vigente de ARESEP | Q1: Local para atención de Usuarios | R1: Seguimiento de quejas | S1: Campañas con escuelas/colegios | T1: Plan de Transparencia y Rendición de cuentas | U1: Plan de Afiliación | V1: Socios en las Asambleas | W1: Porcentaje de abonados que son socios | X1: Balance Hídrico | Y1: Programas de Adaptación Cambio Climático | Z1: Áreas de protección definidas | AA1: Programas de educación ambiental en la comunidad | AB1: Inscripción de caudal en MINAE | AC1: Mediciones de presión | AD1: Plan de instalación de hidrantes | AE1: Contabilidad para hidrantes separada | AF1: Calidad del agua – Sistema de Desinfección | AG1: Plan de Gestión de Riesgos | AH1: Calidad del agua – Periodicidad de los muestreos | AI1: Calidad del agua – Cumplimiento del RCA | AJ1: Calidad del agua – implementación de medidas correctivas | AK1: Frecuencia de interrupciones del servicio | AL1: Manual de mantenimiento y operación del sistema | AM1: Custodia de ingresos | AN1: Plan de Trabajo Anual | AO1: Libro de Socios | AP1: Libro de Actas Asamblea | AQ1: Libro de Actas Junta Directiva | AR1: Convenio de Delegación | AS1: Fontanero | AT1: Servicios de Contabilidad | AU1: Estados financieros al último trimestre | AV1: Respaldos de información Financiera | AW1: Estados Financieros enviados a AyA | AX1: Bodega de materiales para operación y mantenimiento | AY1: Sistemas de gestión para la ASADAS | AZ1: Condición del Alcantarillado Sanitario | BA1: Presentación de reportes operacionales | BB1: Estado de la PTAR | BC1: Gestión Comercial | BD1: Gestión Comunal | BE1: Gestión Ambiental y de Recurso Hídrico | BF1: Gestión de Sistemas de Agua | BG1: Gestión Administrativa y Financiera | BH1: Gestión Saneamiento | BI1: Categoría | BJ1: Puntuación | BK1: Porcentaje | BL1: Variable a mejorar 1 | BM1: % Cumplimiento V1 | BN1: Variable a mejorar 2 | BO1: % Cumplimiento V2 | BP1: Variable a mejorar 3 | BQ1: % Cumplimiento V3 | BR1: Variable a mejorar 4 | BS1: % Cumplimiento V4 | BT1: Variable a mejorar 5 | BU1: % Cumplimiento V5 | BV1: Variable a mejorar 6 | BW1: % Cumplimiento V6 | BX1: Variable a mejorar 7 | BY1: % Cumplimiento V7 | BZ1: Variable a mejorar 8 | CA1: % Cumplimiento V8
A2: =+Presentación!B4 -> 00:00:00 | B2: =+nombre.asada -> 0 | C2: =+Presentación!B8 -> 0 | D2: =+Presentación!B9 -> 0 | E2: =+Presentación!D8 -> 0 | F2: =+Presentación!D9 -> 0 | G2: =+Presentación!C10 -> 0 | H2: =+Presentación!C11 -> 0 | I2: =+Diagnóstico!S5 -> 0.01 | J2: =+Diagnóstico!S6 -> 0.005 | K2: =+Diagnóstico!S7 -> 0.0067 | L2: =+Diagnóstico!S8 -> 0 | M2: =+Diagnóstico!S9 -> 0.01 | N2: =+Diagnóstico!S10 -> 0.01 | O2: =+Diagnóstico!S11 -> 0.01 | P2: =+Diagnóstico!S12 -> 0.05 | Q2: =+Diagnóstico!S13 -> 0.02 | R2: =+Diagnóstico!S14 -> 0.01 | S2: =+Diagnóstico!S17 -> 0.03 | T2: =+Diagnóstico!S18 -> 0.03 | U2: =+Diagnóstico!S19 -> 0.03 | V2: =+Diagnóstico!S20 -> 0.03 | W2: =+Diagnóstico!S21 -> 0.03 | X2: =+Diagnóstico!S24 -> 0.04 | Y2: =+Diagnóstico!S25 -> 0.02 | Z2: =+Diagnóstico!S26 -> 0.04 | AA2: =+Diagnóstico!S27 -> 0.02 | AB2: =+Diagnóstico!S28 -> 0.03 | AC2: =+Diagnóstico!S31 -> 0.02 | AD2: =+Diagnóstico!S32 -> 0.01 | AE2: =+Diagnóstico!S33 -> 0.01 | AF2: =+Diagnóstico!S34 -> 0.03 | AG2: =+Diagnóstico!S35 -> 0.02 | AH2: =+Diagnóstico!S36 -> 0.03 | AI2: =+Diagnóstico!S37 -> 0.12 | AJ2: =+Diagnóstico!S38 -> 0.02 | AK2: =+Diagnóstico!S39 -> 0.02 | AL2: =+Diagnóstico!S40 -> 0.02 | AM2: =+Diagnóstico!S43 -> 0.01 | AN2: =+Diagnóstico!S44 -> 0.02 | AO2: =+Diagnóstico!S45 -> 0.01 | AP2: =+Diagnóstico!S46 -> 0.01 | AQ2: =+Diagnóstico!S47 -> 0.01 | AR2: =+Diagnóstico!S48 -> 0.1 | AS2: =+Diagnóstico!S49 -> 0.03 | AT2: =+Diagnóstico!S50 -> 0.01 | AU2: =+Diagnóstico!S51 -> 0.01 | AV2: =+Diagnóstico!S52 -> 0.01 | AW2: =+Diagnóstico!S53 -> 0.01 | AX2: =+Diagnóstico!S54 -> 0.01 | AY2: =+Diagnóstico!S55 -> 0.01 | AZ2: =+Diagnóstico!S59 -> 0.03 | BA2: =+Diagnóstico!S60 -> 0.04 | BB2: =+Diagnóstico!S61 -> 0.03 | BC2: =+Diagnóstico!F81 -> 0.0183 | BD2: =+Diagnóstico!F82 -> 0 | BE2: =+Diagnóstico!F83 -> 0 | BF2: =+Diagnóstico!F84 -> 0 | BG2: =+Diagnóstico!F85 -> 0 | BH2: =+Diagnóstico!F86 -> 0 | BI2: =+Diagnóstico!B69 -> Débil | BJ2: =+Diagnóstico!C68 -> 3 | BK2: =+Diagnóstico!D68 -> 0.0183 | BL2: =+Plan!B7 ->  | BM2: =+Plan!W7 ->  | BN2: =+Plan!B14 -> 0 | BO2: =+Plan!W14 ->  | BP2: =+Plan!B21 -> 0 | BQ2: =+Plan!W21 ->  | BR2: =+Plan!B28 -> 0 | BS2: =+Plan!W28 ->  | BT2: =+Plan!B35 -> 0 | BU2: =+Plan!W35 ->  | BV2: =+Plan!B42 -> 0 | BW2: =+Plan!W42 ->  | BX2: =+Plan!B49 -> 0 | BY2: =+Plan!W49 ->  | BZ2: =+Plan!B56 -> 0 | CA2: =+Plan!W56 -> 

Sheet Pivots (hidden)
D1: Variables a trabajar en PME | E1: (Varios elementos)
A2: Gestión Comercial
A3: Etiquetas de fila | B3: Suma de Diferencia % | D3: Etiquetas de fila | E3: Suma de % Faltante
A4: Aplicación de tarifa vigente de ARESEP | B4: 0.05 | D4: Total general
A5: Local para atención de Usuarios | B5: 0.02
A6: Sistema de Facturación | B6: 0.01
A7: Morosidad mensual | B7: 0.01
A8: Macromedición existente | B8: 0.01
A9: Sistema de Recaudación | B9: 0.01
A10: Seguimiento de quejas | B10: 0.01
A11: Micromedición instalada | B11: 0.0067
A12: Frecuencia de la lectura de hidrómetros | B12: 0.005
A13: Disponibilidad de agua para nuevos servicios | B13: 0
A14: Total general | B14: 0.1317
A16: Gestión Comunal
A17: Etiquetas de fila | B17: Suma de %
A18: Socios en las Asambleas | B18: 0.03
A19: Campañas con escuelas/colegios | B19: 0.03
A20: Porcentaje de usuarios que son socios | B20: 0.03
A21: Plan de Afiliación | B21: 0.03
A22: Plan de Transparencia y Rendición de cuentas | B22: 0.03
A23: Total general | B23: 0.15
A25: Gestión Ambiental y de Recurso Hídrico
A26: Etiquetas de fila | B26: Suma de %
A27: Áreas de protección definidas | B27: 0.04
A28: Balance Hídrico | B28: 0.04
A29: Inscripción de caudal en MINAE | B29: 0.03
A30: Programas de educación ambiental en la comunidad | B30: 0.02
A31: Programas de Adaptación Cambio Climático | B31: 0.02
A32: Total general | B32: 0.15
A34: Gestión Agua Potable
A35: Etiquetas de fila | B35: Suma de %
A36: Calidad del agua – Cumplimiento del RCA | B36: 0.12
A37: Calidad del agua – Periodicidad de los muestreos | B37: 0.03
A38: Calidad del agua – Sistema de Desinfección | B38: 0.03
A39: Manual de mantenimiento y operación del sistema | B39: 0.02
A40: Frecuencia de interrupciones del servicio | B40: 0.02
A41: Mediciones de presión | B41: 0.02
A42: Plan de Gestión de Riesgos | B42: 0.02
A43: Calidad del agua – implementación de medidas correctivas | B43: 0.02
A44: Plan de instalación de hidrantes | B44: 0.01
A45: Contabilidad para hidrantes separada | B45: 0.01
A46: Total general | B46: 0.3
A48: Gestión Administrativa y Financiera
A49: Etiquetas de fila | B49: Suma de %
A50: Convenio de Delegación | B50: 0.1
A51: Fontanero | B51: 0.03
A52: Plan de Trabajo Anual | B52: 0.02
A53: Libro de Actas Junta Directiva | B53: 0.01
A54: Sistemas de gestión para la ASADAS | B54: 0.01
A55: Estados financieros al último trimestre | B55: 0.01
A56: Libro de Socios | B56: 0.01
A57: Estados Financieros enviados a AyA | B57: 0.01
A58: Respaldos de información Financiera | B58: 0.01
A59: Servicios de Contabilidad | B59: 0.01
A60: Custodia de ingresos | B60: 0.01
A61: Bodega de materiales para operación y mantenimiento | B61: 0.01
A62: Libro de Actas Asamblea | B62: 0.01
A63: Total general | B63: 0.25
A65: Gestión Saneamiento
A66: Etiquetas de fila | B66: Suma de %
A67: Presentación de reportes operacionales | B67: 0.04
A68: Condición del Alcantarillado Sanitario | B68: 0.03
A69: Estado de la PTAR | B69: 0.03
A70: Total general | B70: 0.1
